{"text_format":"1","workbook":"xlsx","n_sheets":5,"sheets":["5 Authorization Planogram List ","New Item Form","DSD Store Assortment and Cost","DROP DOWN BOX SOURCE","Shipper Component form"],"not_rendered":{"charts":0,"images":0,"macros":1,"external_links":0,"defined_names":11,"comments":2,"pivot_tables":0},"unopened":[],"bounds":{"document_bytes":16777216,"sheet_cells":100000,"rows_first":2000,"rows_last":500,"rows_between":2000,"halvings":0,"cell_chars":16384,"cell_head_chars":4096},"cells_cut":0,"cells_raw":0,"read":"whole","date_system":"1900"}

{"sheet":"5 Authorization Planogram List ","index":0,"n_rows":29,"n_cols":2,"rows_kept":29,"cut":false,"hidden":true,"merged":[]}
["Sctn Desc","Assigned to all stores unless specified "]
["1 DISCO PROMO_ALL BANNERS & DC'S","Used for deleted product to be allocated or code changes "]
["1 IN & OUT","Used for temp items 3 months or less"]
["1 SHIPPERS & PALLETS_ALL BANNERS & DCs","Used for allocation of shippers, pallets or modules "]
["2 BAKERY_ALL BANNERS & DC'S","Authorization for Bakery items Only "]
["2 DELI_ALL BANNERS & DC'S","Authorization for Deli  items Only "]
["2 DSD AIR FILTERS_ALL BANNERS & DC'S","Authorization for DSD Air Filter items not Planogramed "]
["2 DSD BREAD AND SWEET GOODS PROMO_ALL BANNERS & DC'S","Authorization for  DSD Bread and Sweet Goods "]
["2 DSD CHIPS_ALL BANNERS & DC'S","Authorization for  DSD Chips not Planogrammed "]
["2 DSD CLIPS STRIPS_ALL BANNERS & DC'S","Authorization for  DSD Clip Strip items "]
["2 DSD CSD_ALL BANNERS & DCs","Authorization for  DSD CSD items not planogrammed "]
["2 DSD KOSHER_ALL BANNERS & DC'S","Authorization for  DSD Kosher items not Planogrammed, "]
["2 DSD LOCAL_ALL BANNERS & DC'S","Authorization for  DSD local item not Planogrammed "]
["2 DSD PRODUCE_ALL BANNERS & DC'S","Authorization for  Produce items only "]
["2 DSD SNACKS_ALL BANNERS & DC'S","Authorization for  DSD Snack (Cookies / Crackers) items not Planogrammed "]
["2 DSD SPIRITS_ALL BANNERS & DC'S","Authorization for  DSD Spirit "]
["2 FALL_ALL BANNERS & DCs","Authorization for Fall items we carry only during this time "]
["2 Fire Wood_04X72_ALL BANNERS & DCS","Authorization for Seasonal firelogs not planogramed "]
["2 Fresco ","Authorization for Items not planogrammed for Fresco stores only "]
["2 HURRICANE EMERGENCY_ALL BANNERS & DC'S","Authorization for all Hurricane emergency items "]
["2 MARKET SEAFOOD_ALL BANNERS & DC'S","Authorization for Seafood Market items only "]
["2 MEAT_ALL BANNERS & DC'S","Authorization for Meat Market items only "]
["2 OWN BRANDS CC_ALL BANNERS & DCs","Authorization for Code Changes for Own Brands "]
["2 PHARMACY_ALL BANNERS & DC'S","Authorization for Pharmacy items not planogrammed "]
["2 SPRING_ALL BANNERS & DCs","Authorization for Spring  items we carry only during this time "]
["2 SUMMER_ALL BANNERS & DCs","Authorization for Summer items we carry only during this time "]
["2 TOBACCO_ALL BANNERS & DC'S","Authorization for Tobacco items not planogrammed   "]
["2 WINTER_ALL BANNERS & DCs","Authorization for Winter items we carry only during this time "]
["z 0002_Store Promo_","Customer Request only "]

{"sheet":"New Item Form","index":1,"n_rows":275,"n_cols":66,"rows_kept":275,"cut":false,"hidden":false,"merged":[[49,21,49,24],[45,21,45,24],[46,21,46,24],[27,6,27,8],[27,9,27,11],[27,12,27,14],[27,15,27,17],[27,18,27,20],[46,3,46,10],[47,21,47,24],[29,6,29,8],[29,9,29,11],[29,12,29,14],[29,15,29,17],[29,18,29,20],[28,6,28,8],[28,9,28,11],[28,12,28,14],[28,15,28,17],[28,18,28,20],[6,30,6,37],[6,24,6,29],[4,2,4,7],[4,8,4,18],[24,30,24,33],[25,26,25,29],[25,30,25,33],[25,18,25,20],[25,6,25,8],[24,9,24,11],[25,9,25,11],[24,12,24,14],[25,12,25,14],[24,15,24,17],[25,15,25,17],[23,6,23,8],[23,9,23,11],[23,12,23,14],[23,15,23,17],[23,18,23,20],[24,6,24,8],[24,3,24,5],[25,3,25,5],[9,24,9,32],[23,23,23,29],[23,30,23,34],[24,26,24,29],[61,2,61,37],[52,9,52,16],[52,17,52,18],[54,2,55,18],[38,4,38,12],[39,30,39,32],[40,16,40,24],[28,3,28,5],[29,3,29,5],[52,20,55,37],[26,24,26,29],[26,30,26,37],[34,34,34,35],[34,15,34,16],[34,18,34,20],[34,22,34,23],[34,25,34,26],[34,28,34,29],[34,31,34,32],[36,2,36,37],[48,21,48,24],[62,2,62,37],[63,2,63,6],[63,7,63,21],[63,22,63,23],[63,24,63,37],[56,32,56,37],[57,2,57,37],[58,2,58,13],[58,17,58,37],[59,2,59,37],[60,2,60,37],[58,14,58,16],[1,2,1,37],[2,2,2,37],[7,2,7,37],[16,3,16,16],[17,3,17,16],[12,3,12,16],[13,3,13,16],[28,23,28,29],[28,30,28,34],[8,2,8,12],[8,13,8,37],[3,2,3,12],[3,13,3,37],[6,2,6,7],[6,8,6,12],[5,2,5,7],[5,8,5,18],[24,18,24,20],[15,2,15,4],[20,2,20,37],[9,2,9,5],[9,6,9,16],[9,18,9,23],[11,29,11,37],[4,19,4,24],[4,25,4,37],[5,19,5,24],[5,25,5,37],[33,2,33,16],[34,2,34,14],[6,21,6,23],[6,13,6,20],[19,3,19,13],[19,14,19,18],[29,30,29,34],[31,30,31,34],[31,20,31,29],[31,3,31,9],[31,10,31,14],[33,17,33,18],[33,20,33,21],[33,23,33,25],[33,27,33,29],[29,23,29,29],[12,20,18,28],[12,29,18,37],[11,20,11,28],[11,2,11,4]]}
[]
[null,null,"SOUTHEASTERN GROCERS NEW ITEM AGREEMENT"]
[null,null,"FIELDS THAT ARE GRAYED OUT INDICATE THAT THE FIELD IS TO BE COMPLETED BY A SEG ASSOCIATE."]
[null,null,"SUPPLIER ITEM DESCRIPTION ",null,null,null,null,null,null,null,null,null,null," "]
[null,null,"VENDOR NAME",null,null,null,null,null," ",null,null,null,null,null,null,null,null,null,null,"Representative's Name"]
[null,null,"VENDOR NUMBER",null,null,null,null,null," ",null,null,null,null,null,null,null,null,null,null,"Phone Number",null,null,null,null,null,null,null,null,null,null,null,null,null,null,null,null,null,null,null,null,null,null,null,null,null,null,null,null,null,null,null,null,null,null,null,null,null,null,null,null,null,null,"13 TOM BARR"]
[null,null,"SEG ITEM NUMBER",null,null,null,null,null," ",null,null,null,null,"FIRST DATE AVAILABLE TO SHIP",null,null,null,null,null,null,null,null,null,null,"MODEL CODE",null,null,null,null,null," "]
[null,null,"Retail Data"]
[null,null,"POINT OF SALE DESCRIPTION"]
[null,null,"RETAIL SIZE",null,null,null,null,null,null,null,null,null,null,null,null,null,null,null,"Retail Unit of Measure"]
[]
[null,null,"UNIT UPC",null,null,null,null,null,null,null,null,null,null,null,null,null,null,null,null,null,"UNIT UPC PICTURE",null,null,null,null,null,null,null,null,"CASE UPC PICTURE"]
[null,null,null,"ATTACHED PHOTO COPY OF UPC BAR CODE REQUIRED"]
[null,null,null,"Check Digit is required for UNIT UPCs"]
[]
[null,null,"CASE UPC"]
[null,null,null,"ATTACHED PHOTO COPY OF UPC BAR CODE REQUIRED"]
[null,null,null,"Check Digit is required for CASE UPCs"]
[]
[null,null,null,"Is this item in Syndigo DataSync Provider?"]
[null,null,"Logistic Data"]
[]
[]
[null,null,null,null,null,null,"PACK (Coeff)",null,null,"LENGTH (in)",null,null,"WIDTH (in)",null,null,"HEIGHT (in)",null,null,"WEIGHT (lbs)",null,null,null,null,"MANUFACTURER CODE ( SKU )",null,null,null,null,null,null," "]
[null,null,null,"MSTR",null,null,null,null,null,null,null,null,null,null,null,null,null,null,null,null,null,null,null,null,null,null,"SHIP COST"]
[null,null,null,"SHIP",null,null,null,null,null,null,null,null,null,null,null,null,null,null,null,null,null,null,null,null,null,null,"UNIT COST",null,null,null,{"$f":"IFERROR(ROUND(AE25/G26,2),\"\")","v":""}]
[null,null,null,null,null,null,null,null,null,null,null,null,null,null,null,null,null,null,null,null,null,null,null,null,"PACKAGING"]
[null,null,null,null,null,null,"PACK (Coeff)",null,null,"LENGTH (in)",null,null,"WIDTH (in)",null,null,"HEIGHT (in)",null,null,"WEIGHT (lbs)"]
[null,null,null,"TIE ",null,null,null,null,null,null,null,null,null,null,null,null,null,null,null,null,null,null,null,"DSD Invoice Sequence Num",null,null,null,null,null,null," "]
[null,null,null,"TIER",null,null,null,null,null,null,null,null,null,null,null,null,null,null,null,null,null,null,null,"DSD Vendor Sku",null,null,null,null,null,null," "]
[]
[null,null,null,"Company Product Y/N",null,null,null,null,null,null," ",null,null,null,null,null,null,null,null,null,"Existing SEG Code if a replacement item",null,null,null,null,null,null,null,null,null," "]
[null,null,null,null," ",null,null,null,null,null,null,null,null,null,null,null,null,null,null,null,null,null,null,null,null,null,null,null,null,null,null,null,null,null,null,null,null,null,null,null,null,null,null,null,null,null,null,null,null,null,null,null,null,null,null,null,null,null,null,{"$f":"IF(AND(#REF!=216,OR(#REF!=\"16\",#REF!=\"25\",#REF!=\"41\",#REF!=\"43\")),1,0)","v":{"$error":"#REF!"}},216,4,"79 ERIC HAINES","20839","GM CONTINUITY","CONTAINER, TIN"]
[null,null,"ITEM TO BE AUTHORIZED FOR BANNERS AS INDICATED: (X)",null,null,null,null,null,null,null,null,null,null,null,null,null,null,"WD",null," ","BILO",null," ","HARVEY'S",null,null," ","ALL"]
[null,null,"ITEM WILL BE AUTHORIZED IN THE FOLLOWING DC'S",null,null,null,null,null,null,null,null,null,null,null,null,"JAX",null," ","Plant City",null,null," ","MIA",null,null,"MAU",null,null,"NOL",null,null,"FAC 19",null," ","GMD",null,null,null,null,null,null,null,null,null,null,null,null,null,null,null,null,null,null,null,null,null,null,null,null,null,null,null,"N"]
[]
[null,null,"Pricing Data"]
[null,null,"INITIAL RECOMMENDED UNIT RETAIL PRICING",null,null,null,null,null,null,null,null,null,null,null,null,null,null,null,null,null,null,null,null,null,null,null,null,null,null,null,null,null,null,null,null,null,null,null,null,null,null,null,null,null,null,null,null,null,null,null,null,null,null,null,null,null,null,null,null,null,null,null,"WHS PALLET"]
[null,null,null,null,null,null,null,null,null,null,null,null,null,null,null,null,null,null,null,null,null,null,null,null,null,null,null,null,null,null,null,null,null,null,null,null,null,null,null,null,null,null,null,null,null,null,null,null,null,null,null,null,null,null,null,null,null,null,null,null,null,null,"UNITS"]
[null,null,null,null,null,null,null,null,null,null,null,null,null,null,null,null,null,null,null,null,null,"PRE-PRICED ITEM Y/N  "," ",null,null,null,null,null,null,"PRE-PRICED PRICE  "," "]
[]
[]
[null,null,"If not Pre-priced, then enter a \"RECOMMENDED\" Retail Price "]
[]
[]
[null,null,null,null,null,null,null,null,null,null,null,null,null,null,null,null,null,"WINN DIXIE"]
[null,null,null,null,null,null,null,null,null,null,null,null,null,null,null,null,null,"WINN DIXIE"]
[null,null,null,null,null,null,null,null,null,null,null,null,null,null,null,null,null,"BI-LO"]
[null,null,null,null,null,null,null,null,null,null,null,null,null,null,null,null,null,"HARVEYS"]
[null,null,null,null,null,null,null,null,null,null,null,null,null,null,null,null,null,"Fresco Y Mas"]
[]
[]
[null,null,null,null,null,null,null,null,null,null,null,null,null,null,null,null,null,null,null,null,null,null,null,null,null,null,null,null,null,null,null,null,null,null,null,null,null,null,null,null,null,null,null,null,null,null,null,null,null,null,null,null,null,null,null,null,null,null,null,{"$f":"IF(AND(#REF!=302,OR(#REF!=\"01\",#REF!=\"15\",#REF!=\"40\",#REF!=\"50\",#REF!=\"60\",#REF! =\"99\")),1,0)","v":{"$error":"#REF!"}},302,5,"80 CHARLIE VAN PELT","20845","GM SEASONAL","ENVELOPE/POUCH, PAPER"]
[null,null,null,"CATEGORY MANAGER APPROVAL",null,null,null,null,null,null,null,null,null,null,null,null,null,null,null,null,null,null,null,null,null,null,null,null,null,null,null,null,null,null,null,null,null,null,null,null,null,null,null,null,null,null,null,null,null,null,null,null,null,null,null,null,null,null,null,{"$f":"IF(AND(#REF!=310,#REF! =\"25\"),1,0)","v":{"$error":"#REF!"}},310,1,"81 MIKE JEFFREYS","20860","PHOTO LAB","ENVELOPE/POUCH, PLASTIC"]
[null,null,null,null,null,null,null,null,null,null,null,null,null,null,null,null,null,null,null,null,null,null,null,null,null,null,null,null,null,null,null,null,null,null,null,null,null,null,null,null,null,null,null,null,null,null,null,null,null,null,null,null,null,null,null,null,null,null,null,{"$f":"IF(AND(#REF!=312,OR(#REF!=\"23\",#REF!=\"24\",#REF!=\"25\",#REF!=\"40\",#REF! =\"41\",#REF!=\"44\",#REF!=\"50\")),1,0)","v":{"$error":"#REF!"}},312,7,"82 JEFF ELWELL","21024","PHOTO LAB SUPPLIES","KEG, STAINLESS STEEL"]
[null,null,null,null,null,null,null,null,null,null,null,null,null,null,null,null,null,null,null,null,null,null,null,null,null,null,null,null,null,null,null,null,null,null,null,null,null,null,null,null,null,null,null,null,null,null,null,null,null,null,null,null,null,null,null,null,null,null,null,{"$f":"IF(AND(#REF!=403,OR(#REF!=\"02\",#REF!=\"12\",#REF!=\"15\",#REF!=\"19\",#REF! =\"68\",#REF!=\"99\")),1,0)","v":{"$error":"#REF!"}},403,6,"83 ROBERT STEWART","21025","GROCERY SUPPLIES","OVERWRAP, FOIL"]
[null,null,null,null,null,null,null,null,null,null,null,null,null,null,null,null,null,null,null,null,null,null,null,null,null,null,null,null,null,null,null,null,"revised 11/5/2019",null,null,null,null,null,null,null,null,null,null,null,null,null,null,null,null,null,null,null,null,null,null,null,null,null,null,{"$f":"IF(AND(#REF!=404,OR(#REF!=\"15\",#REF!=\"19\",#REF!=\"29\",#REF!=\"50\",#REF! =\"65\",#REF!=\"69\",#REF!=\"79\",#REF!=\"99\")),1,0)","v":{"$error":"#REF!"}},404,8,"84 DAVID VOEKS","21040","PAPER/PLASTIC BAGS","OVERWRAP, PAPER"]
[null,null," I, THE SELLER, AGREE THAT UPON ACCEPTANCE OF THIS ITEM, TO FULLY GUARANTEE ITS SUCCESS.  AFTER 180 DAYS OF BEING PLACED IN THE RETAIL",null,null,null,null,null,null,null,null,null,null,null,null,null,null,null,null,null,null,null,null,null,null,null,null,null,null,null,null,null,null,null,null,null,null,null,null,null,null,null,null,null,null,null,null,null,null,null,null,null,null,null,null,null,null,null,null,{"$f":"IF(AND(#REF!=405,OR(#REF!=\"15\",#REF!=\"19\",#REF!=\"99\")),1,0)","v":{"$error":"#REF!"}},405,2,"85 ADONIS PASERIO","21041","CLEANING SUPPLIES","OVERWRAP, PLASTIC"]
[null,null,"STORES, MY NEW ITEM WEEKLY MOVEMENT WILL BE",null,null,null,null,null,null,null,null,null,null,null," ",null,null,"CASES. BI-LO HOLDINGS MAY RETURN THIS PRODUCT TO THEIR RECLAIM CENTER. INVENTORY",null,null,null,null,null,null,null,null,null,null,null,null,null,null,null,null,null,null,null,null,null,null,null,null,null,null,null,null,null,null,null,null,null,null,null,null,null,null,null,null,null,{"$f":"IF(AND(#REF!=411,OR(#REF!=\"25\",#REF!=\"40\",#REF!=\"41\",#REF!=\"42\",#REF! =\"43\",#REF!=\"44\",#REF!=\"45\")),1,0)","v":{"$error":"#REF!"}},411,7,"86 JOHN JANSEN","21043","SECURITY LABELS","PAPER"]
[null,null,"STILL IN THEIR DISTRIBUTION FACILITIES WILL BE RETURNED TO SUPPLIER AT THEIR EXPENSE. BI-LO HOLDINGS MAY BILL OUR COMPANY AT THE CURRENT",null,null,null,null,null,null,null,null,null,null,null,null,null,null,null,null,null,null,null,null,null,null,null,null,null,null,null,null,null,null,null,null,null,null,null,null,null,null,null,null,null,null,null,null,null,null,null,null,null,null,null,null,null,null,null,null,{"$f":"IF(AND(#REF!=415,OR(#REF!=\"17\",#REF!=\"24\",#REF!=\"25\",#REF!=\"40\",#REF! =\"41\",#REF!=\"42\",#REF!=\"43\",#REF!=\"44\",#REF!=\"45\",#REF!=\"46\",#REF!=\"47\",#REF!=\"53\",#REF!=\"54\",#REF!=\"55\",#REF!=\"56\",#REF!=\"57\",#REF!=\"58\",#REF!=\"59\",#REF!=\"60\",#REF!=\"61\",#REF!=\"62\")),1,0)","v":{"$error":"#REF!"}},415,14,"87 KEVIN COCHRAN","21045","PACKAGING/LABELS","PLASTIC TOP FOIL BASE"]
[null,null,"RECLAIM BILLING PRICE. I UNDERSTAND THAT MY PRODUCT WILL BE AVAILABLE FOR DONATION, PICKUP, DESTROY, RETURN AND/OR DISPOSEAL BY",null,null,null,null,null,null,null,null,null,null,null,null,null,null,null,null,null,null,null,null,null,null,null,null,null,null,null,null,null,null,null,null,null,null,null,null,null,null,null,null,null,null,null,null,null,null,null,null,null,null,null,null,null,null,null,null,{"$f":"IF(AND(#REF!=416,OR(#REF!=\"25\",#REF!=\"40\",#REF!=\"41\",#REF!=\"42\",#REF! =\"43\",#REF!=\"44\",#REF!=\"45\",#REF!=\"46\",#REF!=\"47\")),1,0)","v":{"$error":"#REF!"}},416,9,"88 DEBORAH SHAPIRO","21046","OFFICE/POS SUPPLIES"]
[null,null,"METHOD  OF DISPOSITION UNDER NORMAL BI-LO HOLDINGS RECLAIM POLICY. PLEASE PROVIDE A MINIMUM OF TWO LIVE SAMPLES AND A PHOTO COPY OF THE",null,null,null,null,null,null,null,null,null,null,null,null,null,null,null,null,null,null,null,null,null,null,null,null,null,null,null,null,null,null,null,null,null,null,null,null,null,null,null,null,null,null,null,null,null,null,null,null,null,null,null,null,null,null,null,null,{"$f":"IF(AND(#REF!=501,OR(#REF!=\"03\",#REF!=\"60\",#REF! =\"99\")),1,0)","v":{"$error":"#REF!"}},501,3,"89 JASON COOK","21048","FLOORCARE SUPPLIES"]
[null,null,"UPC BAR CODE FOR EACH NEW ITEM SUBMITTED. PLEASE SEE YOUR CATEGORY MANAGER FOR ADDITIONAL INFORMATION.",null,null,null,null,null,null,null,null,null,null,null,null,null,null,null,null,null,null,null,null,null,null,null,null,null,null,null,null,null,null,null,null,null,null,null,null,null,null,null,null,null,null,null,null,null,null,null,null,null,null,null,null,null,null,null,null,{"$f":"IF(AND(#REF!=502,#REF! =\"40\"),1,0)","v":{"$error":"#REF!"}},502,1,"90 DAVID WELCH","21066","PHOTO PKGING/LABELS"]
[null,null,"SUBMITTED BY:",null,null,null,null,null,null,null,null,null,null,null,null,null,null,null,null,null,null,null,"DATE:",null,null,null,null,null,null,null,null,null,null,null,null,null,null,null,null,null,null,null,null,null,null,null,null,null,null,null,null,null,null,null,null,null,null,null,null,{"$f":"IF(AND(#REF!=503,#REF! =\"99\"),1,0)","v":{"$error":"#REF!"}},503,1,"91 GROCERY CATEGORY MANAGER","21077","PHARMACY SUPPLIES"]
[null,null,null,null,null,null,null,null,null,null,null,null,null,null,null,null,null,null,null,null,null,null,null,null,null,null,null,null,null,null,null,null,null,null,null,null,null,null,null,null,null,null,null,null,null,null,null,null,null,null,null,null,null,null,null,null,null,null,null,{"$f":"IF(AND(#REF!=504,#REF! =\"99\"),1,0)","v":{"$error":"#REF!"}},504,1,"92 JERRY DAVIS","21098","PHARM SUPPLIES MISC"]
[null,null,null,null,null,null,null,null,null,null,null,null,null,null,null,null,null,null,null,null,null,null,null,null,null,null,null,null,null,null,null,null,null,null,null,null,null,null,null,null,null,null,null,null,null,null,null,null,null,null,null,null,null,null,null,null,null,null,null,{"$f":"IF(AND(#REF!=508,OR(#REF!=\"03\",#REF!=\"04\",#REF!=\"39\",#REF!=\"45\",#REF! =\"46\",#REF!=\"47\",#REF!=\"60\",#REF!=\"65\",#REF!=\"70\",#REF!=\"71\",#REF!=\"99\")),1,0)","v":{"$error":"#REF!"}},508,11,"93 RON MORWAY","21125","MEAT SUPPLIES"]
[null,null,null,null,null,null,null,null,null,null,null,null,null,null,null,null,null,null,null,null,null,null,null,null,null,null,null,null,null,null,null,null,null,null,null,null,null,null,null,null,null,null,null,null,null,null,null,null,null,null,null,null,null,null,null,null,null,null,null,{"$f":"IF(AND(#REF!=509,#REF! =\"99\"),1,0)","v":{"$error":"#REF!"}},509,1,"94 SARAH HEXIMER","21141","MEAT PKGING/LABELS"]
[null,null,null,null,null,null,null,null,null,null,null,null,null,null,null,null,null,null,null,null,null,null,null,null,null,null,null,null,null,null,null,null,null,null,null,null,null,null,null,null,null,null,null,null,null,null,null,null,null,null,null,null,null,null,null,null,null,null,null,{"$f":"IF(AND(#REF!=510,OR(#REF!=\"16\",#REF!=\"23\",#REF!=\"24\",#REF!=\"25\",#REF! =\"28\",#REF!=\"29\",#REF!=\"40\",#REF!=\"41\",#REF!=\"42\",#REF!=\"43\",#REF!=\"44\",#REF!=\"45\",#REF!=\"46\",#REF!=\"47\",#REF!=\"48\",#REF!=\"49\",#REF!=\"50\",#REF!=\"51\",#REF!=\"52\",#REF!=\"53\",#REF!=\"65\",#REF!=\"66\",#REF!=\"75\",#REF!=\"76\",#REF!=\"77\",#REF!=\"78\",#REF!=\"98\")),1,0)","v":{"$error":"#REF!"}},510,27,"95 RICHARD STURGILL","21216","PROD COS SUPPLIES"]
[null,null,null,null,null,null,null,null,null,null,null,null,null,null,null,null,null,null,null,null,null,null,null,null,null,null,null,null,null,null,null,null,null,null,null,null,null,null,null,null,null,null,null,null,null,null,null,null,null,null,null,null,null,null,null,null,null,null,null,{"$f":"IF(AND(#REF!=511,OR(#REF!=\"16\",#REF!=\"25\",#REF!=\"40\",#REF!=\"41\",#REF!=\"42\",#REF!=\"43\",#REF!=\"44\",#REF!=\"45\",#REF!=\"46\",#REF!=\"47\",#REF!=\"48\",#REF!=\"49\",#REF!=\"50\",#REF!=\"51\",#REF!=\"52\",#REF!=\"53\",#REF!=\"54\")),1,0)","v":{"$error":"#REF!"}},511,17,"96 MIKE RUSSELL","21225","PROD EXP SUPPLIES"]
[null,null,null,null,null,null,null,null,null,null,null,null,null,null,null,null,null,null,null,null,null,null,null,null,null,null,null,null,null,null,null,null,null,null,null,null,null,null,null,null,null,null,null,null,null,null,null,null,null,null,null,null,null,null,null,null,null,null,null,{"$f":"IF(AND(#REF!=512,OR(#REF!=\"16\",#REF!=\"23\",#REF!=\"24\",#REF!=\"25\",#REF!=\"40\",#REF!=\"41\",#REF!=\"42\",#REF!=\"43\",#REF!=\"44\",#REF!=\"45\",#REF!=\"46\",#REF!=\"47\",#REF!=\"48\",#REF!=\"49\",#REF!=\"50\")),1,0)","v":{"$error":"#REF!"}},512,15,null,"21241","PROD PKGING/LABELS"]
[null,null,null,null,null,null,null,null,null,null,null,null,null,null,null,null,null,null,null,null,null,null,null,null,null,null,null,null,null,null,null,null,null,null,null,null,null,null,null,null,null,null,null,null,null,null,null,null,null,null,null,null,null,null,null,null,null,null,null,{"$f":"IF(AND(#REF!=513,#REF! =\"25\"),1,0)","v":{"$error":"#REF!"}},513,1,null,"21243","PROD POP SUPPLIES"]
[null,null,null,null,null,null,null,null,null,null,null,null,null,null,null,null,null,null,null,null,null,null,null,null,null,null,null,null,null,null,null,null,null,null,null,null,null,null,null,null,null,null,null,null,null,null,null,null,null,null,null,null,null,null,null,null,null,null,null,{"$f":"IF(AND(#REF!=515,OR(#REF!=\"17\",#REF!=\"25\",#REF! =\"40\",#REF!=\"41\",#REF!=\"42\",#REF!=\"43\",#REF!=\"44\",#REF!=\"45\",#REF!=\"46\",#REF!=\"47\",#REF!=\"48\",#REF!=\"49\",#REF!=\"50\",#REF!=\"51\",#REF!=\"52\",#REF!=\"53\",#REF!=\"54\",#REF!=\"55\",#REF!=\"56\",#REF!=\"57\",#REF!=\"58\",#REF!=\"59\",#REF!=\"60\",#REF!=\"61\",#REF!=\"62\")),1,0)","v":{"$error":"#REF!"}},515,25,null,"21244","PRODUCE BAGS"]
[null,null,null,null,null,null,null,null,null,null,null,null,null,null,null,null,null,null,null,null,null,null,null,null,null,null,null,null,null,null,null,null,null,null,null,null,null,null,null,null,null,null,null,null,null,null,null,null,null,null,null,null,null,null,null,null,null,null,null,{"$f":"IF(AND(#REF!=516,OR(#REF!=\"16\",#REF!=\"25\",#REF!=\"40\",#REF!=\"41\",#REF! =\"42\",#REF!=\"43\",#REF!=\"44\",#REF!=\"45\",#REF!=\"46\",#REF!=\"47\")),1,0)","v":{"$error":"#REF!"}},516,10,null,"21517","DELI COS SUPPLIES"]
[null,null,null,null,null,null,null,null,null,null,null,null,null,null,null,null,null,null,null,null,null,null,null,null,null,null,null,null,null,null,null,null,null,null,null,null,null,null,null,null,null,null,null,null,null,null,null,null,null,null,null,null,null,null,null,null,null,null,null,{"$f":"IF(AND(#REF!=701,#REF! =\"99\"),1,0)","v":{"$error":"#REF!"}},701,1,null,"21525","DELI EXP SUPPLIES"]
[null,null,null,null,null,null,null,null,null,null,null,null,null,null,null,null,null,null,null,null,null,null,null,null,null,null,null,null,null,null,null,null,null,null,null,null,null,null,null,null,null,null,null,null,null,null,null,null,null,null,null,null,null,null,null,null,null,null,null,{"$f":"IF(AND(#REF!=706,OR(#REF!=\"07\",#REF!=\"08\",#REF!=\"09\",#REF!=\"19\",#REF! =\"99\")),1,0)","v":{"$error":"#REF!"}},706,5,null,"21540","DELI SECURITY LABELS"]
[null,null,null,null,null,null,null,null,null,null,null,null,null,null,null,null,null,null,null,null,null,null,null,null,null,null,null,null,null,null,null,null,null,null,null,null,null,null,null,null,null,null,null,null,null,null,null,null,null,null,null,null,null,null,null,null,null,null,null,{"$f":"IF(AND(#REF!=707,OR(#REF!=\"02\",#REF!=\"99\")),1,0)","v":{"$error":"#REF!"}},707,2,null,"21541","DELI PKGING/LABELS"]
[null,null,null,null,null,null,null,null,null,null,null,null,null,null,null,null,null,null,null,null,null,null,null,null,null,null,null,null,null,null,null,null,null,null,null,null,null,null,null,null,null,null,null,null,null,null,null,null,null,null,null,null,null,null,null,null,null,null,null,{"$f":"IF(AND(#REF!<201,#REF!>1),1,0)","v":{"$error":"#REF!"}},null,null,null,"21544","DELI BAGS"]
[null,null,null,null,null,null,null,null,null,null,null,null,null,null,null,null,null,null,null,null,null,null,null,null,null,null,null,null,null,null,null,null,null,null,null,null,null,null,null,null,null,null,null,null,null,null,null,null,null,null,null,null,null,null,null,null,null,null,null,null,null,null,null,"21546","DELI TRNING MTRL"]
[null,null,null,null,null,null,null,null,null,null,null,null,null,null,null,null,null,null,null,null,null,null,null,null,null,null,null,null,null,null,null,null,null,null,null,null,null,null,null,null,null,null,null,null,null,null,null,null,null,null,null,null,null,null,null,null,null,null,null,null,null,null,null,"21554","BAKERY PKGING/LABELS"]
[null,null,null,null,null,null,null,null,null,null,null,null,null,null,null,null,null,null,null,null,null,null,null,null,null,null,null,null,null,null,null,null,null,null,null,null,null,null,null,null,null,null,null,null,null,null,null,null,null,null,null,null,null,null,null,null,null,null,null,null,null,null,null,"21561","BAKERY CPS SUPPLIES"]
[null,null,null,null,null,null,null,null,null,null,null,null,null,null,null,null,null,null,null,null,null,null,null,null,null,null,null,null,null,null,null,null,null,null,null,null,null,null,null,null,null,null,null,null,null,null,null,null,null,null,null,null,null,null,null,null,null,null,null,null,null,null,null,"21562","BAKERY EXP SUPPLIES"]
[null,null,null,null,null,null,null,null,null,null,null,null,null,null,null,null,null,null,null,null,null,null,null,null,null,null,null,null,null,null,null,null,null,null,null,null,null,null,null,null,null,null,null,null,null,null,null,null,null,null,null,null,null,null,null,null,null,null,null,null,null,null,null,"21616","SEAFOOD COS SUPPLIES"]
[null,null,null,null,null,null,null,null,null,null,null,null,null,null,null,null,null,null,null,null,null,null,null,null,null,null,null,null,null,null,null,null,null,null,null,null,null,null,null,null,null,null,null,null,null,null,null,null,null,null,null,null,null,null,null,null,null,null,null,null,null,null,null,"21625","SEAFOOD EXP SUPPLIES"]
[null,null,null,null,null,null,null,null,null,null,null,null,null,null,null,null,null,null,null,null,null,null,null,null,null,null,null,null,null,null,null,null,null,null,null,null,null,null,null,null,null,null,null,null,null,null,null,null,null,null,null,null,null,null,null,null,null,null,null,{"$f":"IF(AND(#REF!=\" \",#REF!=\" \",#REF!=\" \"),1,0)","v":{"$error":"#REF!"}},null,null,null,"21641","SEAFOOD PKGING/LBLS"]
[null,null,null,null,null,null,null,null,null,null,null,null,null,null,null,null,null,null,null,null,null,null,null,null,null,null,null,null,null,null,null,null,null,null,null,null,null,null,null,null,null,null,null,null,null,null,null,null,null,null,null,null,null,null,null,null,null,null,null,null,null,null,null,"21643","SEAFOOD POP SUPPLIES"]
[null,null,null,null,null,null,null,null,null,null,null,null,null,null,null,null,null,null,null,null,null,null,null,null,null,null,null,null,null,null,null,null,null,null,null,null,null,null,null,null,null,null,null,null,null,null,null,null,null,null,null,null,null,null,null,null,null,null,null,null,null,null,null,"30201","PROD SPECIAL ORDERS"]
[null,null,null,null,null,null,null,null,null,null,null,null,null,null,null,null,null,null,null,null,null,null,null,null,null,null,null,null,null,null,null,null,null,null,null,null,null,null,null,null,null,null,null,null,null,null,null,null,null,null,null,null,null,null,null,null,null,null,null,null,null,null,null,"30215","PROD COS SUPPLIES"]
[null,null,null,null,null,null,null,null,null,null,null,null,null,null,null,null,null,null,null,null,null,null,null,null,null,null,null,null,null,null,null,null,null,null,null,null,null,null,null,null,null,null,null,null,null,null,null,null,null,null,null,null,null,null,null,null,null,null,null,null,null,null,null,"30240","FLORAL"]
[null,null,null,null,null,null,null,null,null,null,null,null,null,null,null,null,null,null,null,null,null,null,null,null,null,null,null,null,null,null,null,null,null,null,null,null,null,null,null,null,null,null,null,null,null,null,null,null,null,null,null,null,null,null,null,null,null,null,null,null,null,null,null,"30250","FLORAL COS SUPPLIES"]
[null,null,null,null,null,null,null,null,null,null,null,null,null,null,null,null,null,null,null,null,null,null,null,null,null,null,null,null,null,null,null,null,null,null,null,null,null,null,null,null,null,null,null,null,null,null,null,null,null,null,null,null,null,null,null,null,null,null,null,null,null,null,null,"30260","MELON BAR"]
[null,null,null,null,null,null,null,null,null,null,null,null,null,null,null,null,null,null,null,null,null,null,null,null,null,null,null,null,null,null,null,null,null,null,null,null,null,null,null,null,null,null,null,null,null,null,null,null,null,null,null,null,null,null,null,null,null,null,null,null,null,null,null,"30299","PRODUCE"]
[null,null,null,null,null,null,null,null,null,null,null,null,null,null,null,null,null,null,null,null,null,null,null,null,null,null,null,null,null,null,null,null,null,null,null,null,null,null,null,null,null,null,null,null,null,null,null,null,null,null,null,null,null,null,null,null,null,null,null,null,null,null,null,"31025","GROC EXP SUPPLIES"]
[null,null,null,null,null,null,null,null,null,null,null,null,null,null,null,null,null,null,null,null,null,null,null,null,null,null,null,null,null,null,null,null,null,null,null,null,null,null,null,null,null,null,null,null,null,null,null,null,null,null,null,null,null,null,null,null,null,null,null,null,null,null,null,"31223","FLORAL PKGING/LBLS"]
[null,null,null,null,null,null,null,null,null,null,null,null,null,null,null,null,null,null,null,null,null,null,null,null,null,null,null,null,null,null,null,null,null,null,null,null,null,null,null,null,null,null,null,null,null,null,null,null,null,null,null,null,null,null,null,null,null,null,null,null,null,null,null,"31224","FLORAL COS SUPPLIES"]
[null,null,null,null,null,null,null,null,null,null,null,null,null,null,null,null,null,null,null,null,null,null,null,null,null,null,null,null,null,null,null,null,null,null,null,null,null,null,null,null,null,null,null,null,null,null,null,null,null,null,null,null,null,null,null,null,null,null,null,null,null,null,null,"31225","PROD EXP SUPPLIES"]
[null,null,null,null,null,null,null,null,null,null,null,null,null,null,null,null,null,null,null,null,null,null,null,null,null,null,null,null,null,null,null,null,null,null,null,null,null,null,null,null,null,null,null,null,null,null,null,null,null,null,null,null,null,null,null,null,null,null,null,null,null,null,null,"31240","PROD SECURITY LABELS"]
[null,null,null,null,null,null,null,null,null,null,null,null,null,null,null,null,null,null,null,null,null,null,null,null,null,null,null,null,null,null,null,null,null,null,null,null,null,null,null,null,null,null,null,null,null,null,null,null,null,null,null,null,null,null,null,null,null,null,null,null,null,null,null,"31241","PROD PKGING/LABELS"]
[null,null,null,null,null,null,null,null,null,null,null,null,null,null,null,null,null,null,null,null,null,null,null,null,null,null,null,null,null,null,null,null,null,null,null,null,null,null,null,null,null,null,null,null,null,null,null,null,null,null,null,null,null,null,null,null,null,null,null,null,null,null,null,"31244","BAGS"]
[null,null,null,null,null,null,null,null,null,null,null,null,null,null,null,null,null,null,null,null,null,null,null,null,null,null,null,null,null,null,null,null,null,null,null,null,null,null,null,null,null,null,null,null,null,null,null,null,null,null,null,null,null,null,null,null,null,null,null,null,null,null,null,"31250","FLORAL EXP SUPPLIES"]
[null,null,null,null,null,null,null,null,null,null,null,null,null,null,null,null,null,null,null,null,null,null,null,null,null,null,null,null,null,null,null,null,null,null,null,null,null,null,null,null,null,null,null,null,null,null,null,null,null,null,null,null,null,null,null,null,null,null,null,null,null,null,null,"40302","PACKAGED MEAT"]
[null,null,null,null,null,null,null,null,null,null,null,null,null,null,null,null,null,null,null,null,null,null,null,null,null,null,null,null,null,null,null,null,null,null,null,null,null,null,null,null,null,null,null,null,null,null,null,null,null,null,null,null,null,null,null,null,null,null,null,null,null,null,null,"40312","PCKAGED MEAT FROZEN"]
[null,null,null,null,null,null,null,null,null,null,null,null,null,null,null,null,null,null,null,null,null,null,null,null,null,null,null,null,null,null,null,null,null,null,null,null,null,null,null,null,null,null,null,null,null,null,null,null,null,null,null,null,null,null,null,null,null,null,null,null,null,null,null,"40315","MEAT COS SUPPLIES"]
[null,null,null,null,null,null,null,null,null,null,null,null,null,null,null,null,null,null,null,null,null,null,null,null,null,null,null,null,null,null,null,null,null,null,null,null,null,null,null,null,null,null,null,null,null,null,null,null,null,null,null,null,null,null,null,null,null,null,null,null,null,null,null,"40319","MEAT FROZEN"]
[null,null,null,null,null,null,null,null,null,null,null,null,null,null,null,null,null,null,null,null,null,null,null,null,null,null,null,null,null,null,null,null,null,null,null,null,null,null,null,null,null,null,null,null,null,null,null,null,null,null,null,null,null,null,null,null,null,null,null,null,null,null,null,"40368","PKGED MEAT COS SUPL"]
[null,null,null,null,null,null,null,null,null,null,null,null,null,null,null,null,null,null,null,null,null,null,null,null,null,null,null,null,null,null,null,null,null,null,null,null,null,null,null,null,null,null,null,null,null,null,null,null,null,null,null,null,null,null,null,null,null,null,null,null,null,null,null,"40399","MEAT"]
[null,null,null,null,null,null,null,null,null,null,null,null,null,null,null,null,null,null,null,null,null,null,null,null,null,null,null,null,null,null,null,null,null,null,null,null,null,null,null,null,null,null,null,null,null,null,null,null,null,null,null,null,null,null,null,null,null,null,null,null,null,null,null,"40415","DELI COS SUPL INV"]
[null,null,null,null,null,null,null,null,null,null,null,null,null,null,null,null,null,null,null,null,null,null,null,null,null,null,null,null,null,null,null,null,null,null,null,null,null,null,null,null,null,null,null,null,null,null,null,null,null,null,null,null,null,null,null,null,null,null,null,null,null,null,null,"40419","DELI FROZEN"]
[null,null,null,null,null,null,null,null,null,null,null,null,null,null,null,null,null,null,null,null,null,null,null,null,null,null,null,null,null,null,null,null,null,null,null,null,null,null,null,null,null,null,null,null,null,null,null,null,null,null,null,null,null,null,null,null,null,null,null,null,null,null,null,"40429","DELI FROZN SPECIALTY"]
[null,null,null,null,null,null,null,null,null,null,null,null,null,null,null,null,null,null,null,null,null,null,null,null,null,null,null,null,null,null,null,null,null,null,null,null,null,null,null,null,null,null,null,null,null,null,null,null,null,null,null,null,null,null,null,null,null,null,null,null,null,null,null,"40450","BAKERY"]
[null,null,null,null,null,null,null,null,null,null,null,null,null,null,null,null,null,null,null,null,null,null,null,null,null,null,null,null,null,null,null,null,null,null,null,null,null,null,null,null,null,null,null,null,null,null,null,null,null,null,null,null,null,null,null,null,null,null,null,null,null,null,null,"40465","BAKERY COS SUPPLIES"]
[null,null,null,null,null,null,null,null,null,null,null,null,null,null,null,null,null,null,null,null,null,null,null,null,null,null,null,null,null,null,null,null,null,null,null,null,null,null,null,null,null,null,null,null,null,null,null,null,null,null,null,null,null,null,null,null,null,null,null,null,null,null,null,"40469","BAKERY FROZEN"]
[null,null,null,null,null,null,null,null,null,null,null,null,null,null,null,null,null,null,null,null,null,null,null,null,null,null,null,null,null,null,null,null,null,null,null,null,null,null,null,null,null,null,null,null,null,null,null,null,null,null,null,null,null,null,null,null,null,null,null,null,null,null,null,"40479","BAKERY FRZN SPECALTY"]
[null,null,null,null,null,null,null,null,null,null,null,null,null,null,null,null,null,null,null,null,null,null,null,null,null,null,null,null,null,null,null,null,null,null,null,null,null,null,null,null,null,null,null,null,null,null,null,null,null,null,null,null,null,null,null,null,null,null,null,null,null,null,null,"40499","DELI"]
[null,null,null,null,null,null,null,null,null,null,null,null,null,null,null,null,null,null,null,null,null,null,null,null,null,null,null,null,null,null,null,null,null,null,null,null,null,null,null,null,null,null,null,null,null,null,null,null,null,null,null,null,null,null,null,null,null,null,null,null,null,null,null,"40515","SEAFOOD COS SUPPLIES"]
[null,null,null,null,null,null,null,null,null,null,null,null,null,null,null,null,null,null,null,null,null,null,null,null,null,null,null,null,null,null,null,null,null,null,null,null,null,null,null,null,null,null,null,null,null,null,null,null,null,null,null,null,null,null,null,null,null,null,null,null,null,null,null,"40519","SEAFOOD FROZEN"]
[null,null,null,null,null,null,null,null,null,null,null,null,null,null,null,null,null,null,null,null,null,null,null,null,null,null,null,null,null,null,null,null,null,null,null,null,null,null,null,null,null,null,null,null,null,null,null,null,null,null,null,null,null,null,null,null,null,null,null,null,null,null,null,"40599","SEAFOOD"]
[null,null,null,null,null,null,null,null,null,null,null,null,null,null,null,null,null,null,null,null,null,null,null,null,null,null,null,null,null,null,null,null,null,null,null,null,null,null,null,null,null,null,null,null,null,null,null,null,null,null,null,null,null,null,null,null,null,null,null,null,null,null,null,"41125","MEAT EXP SUPPLIES"]
[null,null,null,null,null,null,null,null,null,null,null,null,null,null,null,null,null,null,null,null,null,null,null,null,null,null,null,null,null,null,null,null,null,null,null,null,null,null,null,null,null,null,null,null,null,null,null,null,null,null,null,null,null,null,null,null,null,null,null,null,null,null,null,"41140","MEAT SECURITY LABELS"]
[null,null,null,null,null,null,null,null,null,null,null,null,null,null,null,null,null,null,null,null,null,null,null,null,null,null,null,null,null,null,null,null,null,null,null,null,null,null,null,null,null,null,null,null,null,null,null,null,null,null,null,null,null,null,null,null,null,null,null,null,null,null,null,"41141","MEAT PKGING/LABELS"]
[null,null,null,null,null,null,null,null,null,null,null,null,null,null,null,null,null,null,null,null,null,null,null,null,null,null,null,null,null,null,null,null,null,null,null,null,null,null,null,null,null,null,null,null,null,null,null,null,null,null,null,null,null,null,null,null,null,null,null,null,null,null,null,"41142","MEAT FILM/CELLOPHN"]
[null,null,null,null,null,null,null,null,null,null,null,null,null,null,null,null,null,null,null,null,null,null,null,null,null,null,null,null,null,null,null,null,null,null,null,null,null,null,null,null,null,null,null,null,null,null,null,null,null,null,null,null,null,null,null,null,null,null,null,null,null,null,null,"41143","MEAT POP SUPPLIES"]
[null,null,null,null,null,null,null,null,null,null,null,null,null,null,null,null,null,null,null,null,null,null,null,null,null,null,null,null,null,null,null,null,null,null,null,null,null,null,null,null,null,null,null,null,null,null,null,null,null,null,null,null,null,null,null,null,null,null,null,null,null,null,null,"41144","MEAT CLEANG SUPPLIES"]
[null,null,null,null,null,null,null,null,null,null,null,null,null,null,null,null,null,null,null,null,null,null,null,null,null,null,null,null,null,null,null,null,null,null,null,null,null,null,null,null,null,null,null,null,null,null,null,null,null,null,null,null,null,null,null,null,null,null,null,null,null,null,null,"41145","MEAT PREP SUPPLIES"]
[null,null,null,null,null,null,null,null,null,null,null,null,null,null,null,null,null,null,null,null,null,null,null,null,null,null,null,null,null,null,null,null,null,null,null,null,null,null,null,null,null,null,null,null,null,null,null,null,null,null,null,null,null,null,null,null,null,null,null,null,null,null,null,"41517","DELI COS SUPPLIES"]
[null,null,null,null,null,null,null,null,null,null,null,null,null,null,null,null,null,null,null,null,null,null,null,null,null,null,null,null,null,null,null,null,null,null,null,null,null,null,null,null,null,null,null,null,null,null,null,null,null,null,null,null,null,null,null,null,null,null,null,null,null,null,null,"41524","BAKERY SUPPLIES"]
[null,null,null,null,null,null,null,null,null,null,null,null,null,null,null,null,null,null,null,null,null,null,null,null,null,null,null,null,null,null,null,null,null,null,null,null,null,null,null,null,null,null,null,null,null,null,null,null,null,null,null,null,null,null,null,null,null,null,null,null,null,null,null,"41525","DELI EXP SUPPLIES"]
[null,null,null,null,null,null,null,null,null,null,null,null,null,null,null,null,null,null,null,null,null,null,null,null,null,null,null,null,null,null,null,null,null,null,null,null,null,null,null,null,null,null,null,null,null,null,null,null,null,null,null,null,null,null,null,null,null,null,null,null,null,null,null,"41540","DELI SECURITY LABELS"]
[null,null,null,null,null,null,null,null,null,null,null,null,null,null,null,null,null,null,null,null,null,null,null,null,null,null,null,null,null,null,null,null,null,null,null,null,null,null,null,null,null,null,null,null,null,null,null,null,null,null,null,null,null,null,null,null,null,null,null,null,null,null,null,"41541","DELI PKGING/LABELS"]
[null,null,null,null,null,null,null,null,null,null,null,null,null,null,null,null,null,null,null,null,null,null,null,null,null,null,null,null,null,null,null,null,null,null,null,null,null,null,null,null,null,null,null,null,null,null,null,null,null,null,null,null,null,null,null,null,null,null,null,null,null,null,null,"41542","DELI FILM/CELLOPHN"]
[null,null,null,null,null,null,null,null,null,null,null,null,null,null,null,null,null,null,null,null,null,null,null,null,null,null,null,null,null,null,null,null,null,null,null,null,null,null,null,null,null,null,null,null,null,null,null,null,null,null,null,null,null,null,null,null,null,null,null,null,null,null,null,"41543","DELI POP SUPPLIES"]
[null,null,null,null,null,null,null,null,null,null,null,null,null,null,null,null,null,null,null,null,null,null,null,null,null,null,null,null,null,null,null,null,null,null,null,null,null,null,null,null,null,null,null,null,null,null,null,null,null,null,null,null,null,null,null,null,null,null,null,null,null,null,null,"41544","DELI BAGS"]
[null,null,null,null,null,null,null,null,null,null,null,null,null,null,null,null,null,null,null,null,null,null,null,null,null,null,null,null,null,null,null,null,null,null,null,null,null,null,null,null,null,null,null,null,null,null,null,null,null,null,null,null,null,null,null,null,null,null,null,null,null,null,null,"41545","DELI CLEANG SUPPLIES"]
[null,null,null,null,null,null,null,null,null,null,null,null,null,null,null,null,null,null,null,null,null,null,null,null,null,null,null,null,null,null,null,null,null,null,null,null,null,null,null,null,null,null,null,null,null,null,null,null,null,null,null,null,null,null,null,null,null,null,null,null,null,null,null,"41546","DELI TRNING MTRL"]
[null,null,null,null,null,null,null,null,null,null,null,null,null,null,null,null,null,null,null,null,null,null,null,null,null,null,null,null,null,null,null,null,null,null,null,null,null,null,null,null,null,null,null,null,null,null,null,null,null,null,null,null,null,null,null,null,null,null,null,null,null,null,null,"41547","DELI UNIFORMS"]
[null,null,null,null,null,null,null,null,null,null,null,null,null,null,null,null,null,null,null,null,null,null,null,null,null,null,null,null,null,null,null,null,null,null,null,null,null,null,null,null,null,null,null,null,null,null,null,null,null,null,null,null,null,null,null,null,null,null,null,null,null,null,null,"41553","BAKERY SECURITY LBLS"]
[null,null,null,null,null,null,null,null,null,null,null,null,null,null,null,null,null,null,null,null,null,null,null,null,null,null,null,null,null,null,null,null,null,null,null,null,null,null,null,null,null,null,null,null,null,null,null,null,null,null,null,null,null,null,null,null,null,null,null,null,null,null,null,"41554","BAKERY PKGNG/LABELS"]
[null,null,null,null,null,null,null,null,null,null,null,null,null,null,null,null,null,null,null,null,null,null,null,null,null,null,null,null,null,null,null,null,null,null,null,null,null,null,null,null,null,null,null,null,null,null,null,null,null,null,null,null,null,null,null,null,null,null,null,null,null,null,null,"41555","BAKERY FILM/CELLOPHN"]
[null,null,null,null,null,null,null,null,null,null,null,null,null,null,null,null,null,null,null,null,null,null,null,null,null,null,null,null,null,null,null,null,null,null,null,null,null,null,null,null,null,null,null,null,null,null,null,null,null,null,null,null,null,null,null,null,null,null,null,null,null,null,null,"41556","BAKERY POP SUPPLIES"]
[null,null,null,null,null,null,null,null,null,null,null,null,null,null,null,null,null,null,null,null,null,null,null,null,null,null,null,null,null,null,null,null,null,null,null,null,null,null,null,null,null,null,null,null,null,null,null,null,null,null,null,null,null,null,null,null,null,null,null,null,null,null,null,"41557","BAKERY BAGS"]
[null,null,null,null,null,null,null,null,null,null,null,null,null,null,null,null,null,null,null,null,null,null,null,null,null,null,null,null,null,null,null,null,null,null,null,null,null,null,null,null,null,null,null,null,null,null,null,null,null,null,null,null,null,null,null,null,null,null,null,null,null,null,null,"41558","BAKERY CLNING SUPL"]
[null,null,null,null,null,null,null,null,null,null,null,null,null,null,null,null,null,null,null,null,null,null,null,null,null,null,null,null,null,null,null,null,null,null,null,null,null,null,null,null,null,null,null,null,null,null,null,null,null,null,null,null,null,null,null,null,null,null,null,null,null,null,null,"41559","BAKERY TRNING SUPL"]
[null,null,null,null,null,null,null,null,null,null,null,null,null,null,null,null,null,null,null,null,null,null,null,null,null,null,null,null,null,null,null,null,null,null,null,null,null,null,null,null,null,null,null,null,null,null,null,null,null,null,null,null,null,null,null,null,null,null,null,null,null,null,null,"41560","BAKERY UNIFORMS"]
[null,null,null,null,null,null,null,null,null,null,null,null,null,null,null,null,null,null,null,null,null,null,null,null,null,null,null,null,null,null,null,null,null,null,null,null,null,null,null,null,null,null,null,null,null,null,null,null,null,null,null,null,null,null,null,null,null,null,null,null,null,null,null,"41561","BAKERY COS SUPPLIES"]
[null,null,null,null,null,null,null,null,null,null,null,null,null,null,null,null,null,null,null,null,null,null,null,null,null,null,null,null,null,null,null,null,null,null,null,null,null,null,null,null,null,null,null,null,null,null,null,null,null,null,null,null,null,null,null,null,null,null,null,null,null,null,null,"41562","BAKERY EXP SUPPLIES"]
[null,null,null,null,null,null,null,null,null,null,null,null,null,null,null,null,null,null,null,null,null,null,null,null,null,null,null,null,null,null,null,null,null,null,null,null,null,null,null,null,null,null,null,null,null,null,null,null,null,null,null,null,null,null,null,null,null,null,null,null,null,null,null,"41625","SEAFOOD EXP SUPPLIES"]
[null,null,null,null,null,null,null,null,null,null,null,null,null,null,null,null,null,null,null,null,null,null,null,null,null,null,null,null,null,null,null,null,null,null,null,null,null,null,null,null,null,null,null,null,null,null,null,null,null,null,null,null,null,null,null,null,null,null,null,null,null,null,null,"41640","SEAFD SECRTY LABELS"]
[null,null,null,null,null,null,null,null,null,null,null,null,null,null,null,null,null,null,null,null,null,null,null,null,null,null,null,null,null,null,null,null,null,null,null,null,null,null,null,null,null,null,null,null,null,null,null,null,null,null,null,null,null,null,null,null,null,null,null,null,null,null,null,"41641","SEAFD PKGNG/LABELS"]
[null,null,null,null,null,null,null,null,null,null,null,null,null,null,null,null,null,null,null,null,null,null,null,null,null,null,null,null,null,null,null,null,null,null,null,null,null,null,null,null,null,null,null,null,null,null,null,null,null,null,null,null,null,null,null,null,null,null,null,null,null,null,null,"41642","SEAFD FILM/CELLOPHN"]
[null,null,null,null,null,null,null,null,null,null,null,null,null,null,null,null,null,null,null,null,null,null,null,null,null,null,null,null,null,null,null,null,null,null,null,null,null,null,null,null,null,null,null,null,null,null,null,null,null,null,null,null,null,null,null,null,null,null,null,null,null,null,null,"41643","SEAFD POP SUPPLIES"]
[null,null,null,null,null,null,null,null,null,null,null,null,null,null,null,null,null,null,null,null,null,null,null,null,null,null,null,null,null,null,null,null,null,null,null,null,null,null,null,null,null,null,null,null,null,null,null,null,null,null,null,null,null,null,null,null,null,null,null,null,null,null,null,"41644","SEAFOOD BAGS"]
[null,null,null,null,null,null,null,null,null,null,null,null,null,null,null,null,null,null,null,null,null,null,null,null,null,null,null,null,null,null,null,null,null,null,null,null,null,null,null,null,null,null,null,null,null,null,null,null,null,null,null,null,null,null,null,null,null,null,null,null,null,null,null,"41645","SEAFD CLNING SUPPLIES"]
[null,null,null,null,null,null,null,null,null,null,null,null,null,null,null,null,null,null,null,null,null,null,null,null,null,null,null,null,null,null,null,null,null,null,null,null,null,null,null,null,null,null,null,null,null,null,null,null,null,null,null,null,null,null,null,null,null,null,null,null,null,null,null,"41646","SEAFD TRNING SUPPLIES"]
[null,null,null,null,null,null,null,null,null,null,null,null,null,null,null,null,null,null,null,null,null,null,null,null,null,null,null,null,null,null,null,null,null,null,null,null,null,null,null,null,null,null,null,null,null,null,null,null,null,null,null,null,null,null,null,null,null,null,null,null,null,null,null,"41647","SEAFOOD UNIFORMS"]
[null,null,null,null,null,null,null,null,null,null,null,null,null,null,null,null,null,null,null,null,null,null,null,null,null,null,null,null,null,null,null,null,null,null,null,null,null,null,null,null,null,null,null,null,null,null,null,null,null,null,null,null,null,null,null,null,null,null,null,null,null,null,null,"50103","TOBACCO"]
[null,null,null,null,null,null,null,null,null,null,null,null,null,null,null,null,null,null,null,null,null,null,null,null,null,null,null,null,null,null,null,null,null,null,null,null,null,null,null,null,null,null,null,null,null,null,null,null,null,null,null,null,null,null,null,null,null,null,null,null,null,null,null,"50160","PHOTO LAB"]
[null,null,null,null,null,null,null,null,null,null,null,null,null,null,null,null,null,null,null,null,null,null,null,null,null,null,null,null,null,null,null,null,null,null,null,null,null,null,null,null,null,null,null,null,null,null,null,null,null,null,null,null,null,null,null,null,null,null,null,null,null,null,null,"50199","GROCERY"]
[null,null,null,null,null,null,null,null,null,null,null,null,null,null,null,null,null,null,null,null,null,null,null,null,null,null,null,null,null,null,null,null,null,null,null,null,null,null,null,null,null,null,null,null,null,null,null,null,null,null,null,null,null,null,null,null,null,null,null,null,null,null,null,"50240","FLORAL"]
[null,null,null,null,null,null,null,null,null,null,null,null,null,null,null,null,null,null,null,null,null,null,null,null,null,null,null,null,null,null,null,null,null,null,null,null,null,null,null,null,null,null,null,null,null,null,null,null,null,null,null,null,null,null,null,null,null,null,null,null,null,null,null,"50399","MEAT"]
[null,null,null,null,null,null,null,null,null,null,null,null,null,null,null,null,null,null,null,null,null,null,null,null,null,null,null,null,null,null,null,null,null,null,null,null,null,null,null,null,null,null,null,null,null,null,null,null,null,null,null,null,null,null,null,null,null,null,null,null,null,null,null,"50499","DELI"]
[null,null,null,null,null,null,null,null,null,null,null,null,null,null,null,null,null,null,null,null,null,null,null,null,null,null,null,null,null,null,null,null,null,null,null,null,null,null,null,null,null,null,null,null,null,null,null,null,null,null,null,null,null,null,null,null,null,null,null,null,null,null,null,"50803","DRUGS"]
[null,null,null,null,null,null,null,null,null,null,null,null,null,null,null,null,null,null,null,null,null,null,null,null,null,null,null,null,null,null,null,null,null,null,null,null,null,null,null,null,null,null,null,null,null,null,null,null,null,null,null,null,null,null,null,null,null,null,null,null,null,null,null,"50804","HOUSEWARES"]
[null,null,null,null,null,null,null,null,null,null,null,null,null,null,null,null,null,null,null,null,null,null,null,null,null,null,null,null,null,null,null,null,null,null,null,null,null,null,null,null,null,null,null,null,null,null,null,null,null,null,null,null,null,null,null,null,null,null,null,null,null,null,null,"50839","CONTINUITIES"]
[null,null,null,null,null,null,null,null,null,null,null,null,null,null,null,null,null,null,null,null,null,null,null,null,null,null,null,null,null,null,null,null,null,null,null,null,null,null,null,null,null,null,null,null,null,null,null,null,null,null,null,null,null,null,null,null,null,null,null,null,null,null,null,"50845","SEASONAL"]
[null,null,null,null,null,null,null,null,null,null,null,null,null,null,null,null,null,null,null,null,null,null,null,null,null,null,null,null,null,null,null,null,null,null,null,null,null,null,null,null,null,null,null,null,null,null,null,null,null,null,null,null,null,null,null,null,null,null,null,null,null,null,null,"50846","SPECIAL CORR"]
[null,null,null,null,null,null,null,null,null,null,null,null,null,null,null,null,null,null,null,null,null,null,null,null,null,null,null,null,null,null,null,null,null,null,null,null,null,null,null,null,null,null,null,null,null,null,null,null,null,null,null,null,null,null,null,null,null,null,null,null,null,null,null,"50847","PHOTO LAB SPEC SHIPM"]
[null,null,null,null,null,null,null,null,null,null,null,null,null,null,null,null,null,null,null,null,null,null,null,null,null,null,null,null,null,null,null,null,null,null,null,null,null,null,null,null,null,null,null,null,null,null,null,null,null,null,null,null,null,null,null,null,null,null,null,null,null,null,null,"50860","PHOTO LAB"]
[null,null,null,null,null,null,null,null,null,null,null,null,null,null,null,null,null,null,null,null,null,null,null,null,null,null,null,null,null,null,null,null,null,null,null,null,null,null,null,null,null,null,null,null,null,null,null,null,null,null,null,null,null,null,null,null,null,null,null,null,null,null,null,"50865","PHOTO LAB COS SUPPL"]
[null,null,null,null,null,null,null,null,null,null,null,null,null,null,null,null,null,null,null,null,null,null,null,null,null,null,null,null,null,null,null,null,null,null,null,null,null,null,null,null,null,null,null,null,null,null,null,null,null,null,null,null,null,null,null,null,null,null,null,null,null,null,null,"50870","DRUGS PROMO"]
[null,null,null,null,null,null,null,null,null,null,null,null,null,null,null,null,null,null,null,null,null,null,null,null,null,null,null,null,null,null,null,null,null,null,null,null,null,null,null,null,null,null,null,null,null,null,null,null,null,null,null,null,null,null,null,null,null,null,null,null,null,null,null,"50871","HOUSEWARES PROMO"]
[null,null,null,null,null,null,null,null,null,null,null,null,null,null,null,null,null,null,null,null,null,null,null,null,null,null,null,null,null,null,null,null,null,null,null,null,null,null,null,null,null,null,null,null,null,null,null,null,null,null,null,null,null,null,null,null,null,null,null,null,null,null,null,"50899","PHARM NON-RX"]
[null,null,null,null,null,null,null,null,null,null,null,null,null,null,null,null,null,null,null,null,null,null,null,null,null,null,null,null,null,null,null,null,null,null,null,null,null,null,null,null,null,null,null,null,null,null,null,null,null,null,null,null,null,null,null,null,null,null,null,null,null,null,null,"50999","PHARM GMD-RX"]
[null,null,null,null,null,null,null,null,null,null,null,null,null,null,null,null,null,null,null,null,null,null,null,null,null,null,null,null,null,null,null,null,null,null,null,null,null,null,null,null,null,null,null,null,null,null,null,null,null,null,null,null,null,null,null,null,null,null,null,null,null,null,null,"51016","MELN BAR COS SUPPL"]
[null,null,null,null,null,null,null,null,null,null,null,null,null,null,null,null,null,null,null,null,null,null,null,null,null,null,null,null,null,null,null,null,null,null,null,null,null,null,null,null,null,null,null,null,null,null,null,null,null,null,null,null,null,null,null,null,null,null,null,null,null,null,null,"51023","PHOTO LAB COS SUPL"]
[null,null,null,null,null,null,null,null,null,null,null,null,null,null,null,null,null,null,null,null,null,null,null,null,null,null,null,null,null,null,null,null,null,null,null,null,null,null,null,null,null,null,null,null,null,null,null,null,null,null,null,null,null,null,null,null,null,null,null,null,null,null,null,"51024","PHOTO SUPPLIES"]
[null,null,null,null,null,null,null,null,null,null,null,null,null,null,null,null,null,null,null,null,null,null,null,null,null,null,null,null,null,null,null,null,null,null,null,null,null,null,null,null,null,null,null,null,null,null,null,null,null,null,null,null,null,null,null,null,null,null,null,null,null,null,null,"51025","GROC EXP SUPPLIES"]
[null,null,null,null,null,null,null,null,null,null,null,null,null,null,null,null,null,null,null,null,null,null,null,null,null,null,null,null,null,null,null,null,null,null,null,null,null,null,null,null,null,null,null,null,null,null,null,null,null,null,null,null,null,null,null,null,null,null,null,null,null,null,null,"51028","RX COS SUPPLIES"]
[null,null,null,null,null,null,null,null,null,null,null,null,null,null,null,null,null,null,null,null,null,null,null,null,null,null,null,null,null,null,null,null,null,null,null,null,null,null,null,null,null,null,null,null,null,null,null,null,null,null,null,null,null,null,null,null,null,null,null,null,null,null,null,"51029","GM EXP SUPPLIES"]
[null,null,null,null,null,null,null,null,null,null,null,null,null,null,null,null,null,null,null,null,null,null,null,null,null,null,null,null,null,null,null,null,null,null,null,null,null,null,null,null,null,null,null,null,null,null,null,null,null,null,null,null,null,null,null,null,null,null,null,null,null,null,null,"51040","GROC PPR/PLST BAGS"]
[null,null,null,null,null,null,null,null,null,null,null,null,null,null,null,null,null,null,null,null,null,null,null,null,null,null,null,null,null,null,null,null,null,null,null,null,null,null,null,null,null,null,null,null,null,null,null,null,null,null,null,null,null,null,null,null,null,null,null,null,null,null,null,"51041","GROC CLEANG SUPPLIES"]
[null,null,null,null,null,null,null,null,null,null,null,null,null,null,null,null,null,null,null,null,null,null,null,null,null,null,null,null,null,null,null,null,null,null,null,null,null,null,null,null,null,null,null,null,null,null,null,null,null,null,null,null,null,null,null,null,null,null,null,null,null,null,null,"51042","GROC COMPTR SUPPL"]
[null,null,null,null,null,null,null,null,null,null,null,null,null,null,null,null,null,null,null,null,null,null,null,null,null,null,null,null,null,null,null,null,null,null,null,null,null,null,null,null,null,null,null,null,null,null,null,null,null,null,null,null,null,null,null,null,null,null,null,null,null,null,null,"51043","GROC SECURITY LBLS"]
[null,null,null,null,null,null,null,null,null,null,null,null,null,null,null,null,null,null,null,null,null,null,null,null,null,null,null,null,null,null,null,null,null,null,null,null,null,null,null,null,null,null,null,null,null,null,null,null,null,null,null,null,null,null,null,null,null,null,null,null,null,null,null,"51044","GROC ATM/EFT SUPPL"]
[null,null,null,null,null,null,null,null,null,null,null,null,null,null,null,null,null,null,null,null,null,null,null,null,null,null,null,null,null,null,null,null,null,null,null,null,null,null,null,null,null,null,null,null,null,null,null,null,null,null,null,null,null,null,null,null,null,null,null,null,null,null,null,"51045","GROC PKGNG/LABELS"]
[null,null,null,null,null,null,null,null,null,null,null,null,null,null,null,null,null,null,null,null,null,null,null,null,null,null,null,null,null,null,null,null,null,null,null,null,null,null,null,null,null,null,null,null,null,null,null,null,null,null,null,null,null,null,null,null,null,null,null,null,null,null,null,"51046","GROC POP SUPPLIES"]
[null,null,null,null,null,null,null,null,null,null,null,null,null,null,null,null,null,null,null,null,null,null,null,null,null,null,null,null,null,null,null,null,null,null,null,null,null,null,null,null,null,null,null,null,null,null,null,null,null,null,null,null,null,null,null,null,null,null,null,null,null,null,null,"51047","GROC UNIFORMS"]
[null,null,null,null,null,null,null,null,null,null,null,null,null,null,null,null,null,null,null,null,null,null,null,null,null,null,null,null,null,null,null,null,null,null,null,null,null,null,null,null,null,null,null,null,null,null,null,null,null,null,null,null,null,null,null,null,null,null,null,null,null,null,null,"51048","GROC FLOORCARE"]
[null,null,null,null,null,null,null,null,null,null,null,null,null,null,null,null,null,null,null,null,null,null,null,null,null,null,null,null,null,null,null,null,null,null,null,null,null,null,null,null,null,null,null,null,null,null,null,null,null,null,null,null,null,null,null,null,null,null,null,null,null,null,null,"51049","ALL DEPT SUPPLIES"]
[null,null,null,null,null,null,null,null,null,null,null,null,null,null,null,null,null,null,null,null,null,null,null,null,null,null,null,null,null,null,null,null,null,null,null,null,null,null,null,null,null,null,null,null,null,null,null,null,null,null,null,null,null,null,null,null,null,null,null,null,null,null,null,"51050","ALL DEPT COS SUPPLIES"]
[null,null,null,null,null,null,null,null,null,null,null,null,null,null,null,null,null,null,null,null,null,null,null,null,null,null,null,null,null,null,null,null,null,null,null,null,null,null,null,null,null,null,null,null,null,null,null,null,null,null,null,null,null,null,null,null,null,null,null,null,null,null,null,"51051","ALL DEPT CLNING SUPPL"]
[null,null,null,null,null,null,null,null,null,null,null,null,null,null,null,null,null,null,null,null,null,null,null,null,null,null,null,null,null,null,null,null,null,null,null,null,null,null,null,null,null,null,null,null,null,null,null,null,null,null,null,null,null,null,null,null,null,null,null,null,null,null,null,"51052","ALL DEPT PKGNG/LBLS"]
[null,null,null,null,null,null,null,null,null,null,null,null,null,null,null,null,null,null,null,null,null,null,null,null,null,null,null,null,null,null,null,null,null,null,null,null,null,null,null,null,null,null,null,null,null,null,null,null,null,null,null,null,null,null,null,null,null,null,null,null,null,null,null,"51053","ALL DEPT FLOORCARE"]
[null,null,null,null,null,null,null,null,null,null,null,null,null,null,null,null,null,null,null,null,null,null,null,null,null,null,null,null,null,null,null,null,null,null,null,null,null,null,null,null,null,null,null,null,null,null,null,null,null,null,null,null,null,null,null,null,null,null,null,null,null,null,null,"51065","GM SECURITY LABELS"]
[null,null,null,null,null,null,null,null,null,null,null,null,null,null,null,null,null,null,null,null,null,null,null,null,null,null,null,null,null,null,null,null,null,null,null,null,null,null,null,null,null,null,null,null,null,null,null,null,null,null,null,null,null,null,null,null,null,null,null,null,null,null,null,"51066","PHOTO PKGNG/LBLS"]
[null,null,null,null,null,null,null,null,null,null,null,null,null,null,null,null,null,null,null,null,null,null,null,null,null,null,null,null,null,null,null,null,null,null,null,null,null,null,null,null,null,null,null,null,null,null,null,null,null,null,null,null,null,null,null,null,null,null,null,null,null,null,null,"51075","PHARM SECURITY LBLS"]
[null,null,null,null,null,null,null,null,null,null,null,null,null,null,null,null,null,null,null,null,null,null,null,null,null,null,null,null,null,null,null,null,null,null,null,null,null,null,null,null,null,null,null,null,null,null,null,null,null,null,null,null,null,null,null,null,null,null,null,null,null,null,null,"51076","PHARM PKGNG/LABELS"]
[null,null,null,null,null,null,null,null,null,null,null,null,null,null,null,null,null,null,null,null,null,null,null,null,null,null,null,null,null,null,null,null,null,null,null,null,null,null,null,null,null,null,null,null,null,null,null,null,null,null,null,null,null,null,null,null,null,null,null,null,null,null,null,"51077","PHARM SUPPLIES"]
[null,null,null,null,null,null,null,null,null,null,null,null,null,null,null,null,null,null,null,null,null,null,null,null,null,null,null,null,null,null,null,null,null,null,null,null,null,null,null,null,null,null,null,null,null,null,null,null,null,null,null,null,null,null,null,null,null,null,null,null,null,null,null,"51078","PHARM UNIFORMS"]
[null,null,null,null,null,null,null,null,null,null,null,null,null,null,null,null,null,null,null,null,null,null,null,null,null,null,null,null,null,null,null,null,null,null,null,null,null,null,null,null,null,null,null,null,null,null,null,null,null,null,null,null,null,null,null,null,null,null,null,null,null,null,null,"51098","MISC FEES"]
[null,null,null,null,null,null,null,null,null,null,null,null,null,null,null,null,null,null,null,null,null,null,null,null,null,null,null,null,null,null,null,null,null,null,null,null,null,null,null,null,null,null,null,null,null,null,null,null,null,null,null,null,null,null,null,null,null,null,null,null,null,null,null,"51116","MEAT COS SUPPLIES"]
[null,null,null,null,null,null,null,null,null,null,null,null,null,null,null,null,null,null,null,null,null,null,null,null,null,null,null,null,null,null,null,null,null,null,null,null,null,null,null,null,null,null,null,null,null,null,null,null,null,null,null,null,null,null,null,null,null,null,null,null,null,null,null,"51125","MEAT EXP SUPPLIES"]
[null,null,null,null,null,null,null,null,null,null,null,null,null,null,null,null,null,null,null,null,null,null,null,null,null,null,null,null,null,null,null,null,null,null,null,null,null,null,null,null,null,null,null,null,null,null,null,null,null,null,null,null,null,null,null,null,null,null,null,null,null,null,null,"51140","MEAT SECURITY LABELS"]
[null,null,null,null,null,null,null,null,null,null,null,null,null,null,null,null,null,null,null,null,null,null,null,null,null,null,null,null,null,null,null,null,null,null,null,null,null,null,null,null,null,null,null,null,null,null,null,null,null,null,null,null,null,null,null,null,null,null,null,null,null,null,null,"51141","MEAT PKGING/LABELS"]
[null,null,null,null,null,null,null,null,null,null,null,null,null,null,null,null,null,null,null,null,null,null,null,null,null,null,null,null,null,null,null,null,null,null,null,null,null,null,null,null,null,null,null,null,null,null,null,null,null,null,null,null,null,null,null,null,null,null,null,null,null,null,null,"51142","MEAT FILM/CELLOPHN"]
[null,null,null,null,null,null,null,null,null,null,null,null,null,null,null,null,null,null,null,null,null,null,null,null,null,null,null,null,null,null,null,null,null,null,null,null,null,null,null,null,null,null,null,null,null,null,null,null,null,null,null,null,null,null,null,null,null,null,null,null,null,null,null,"51143","MEAT POP SUPPLIES"]
[null,null,null,null,null,null,null,null,null,null,null,null,null,null,null,null,null,null,null,null,null,null,null,null,null,null,null,null,null,null,null,null,null,null,null,null,null,null,null,null,null,null,null,null,null,null,null,null,null,null,null,null,null,null,null,null,null,null,null,null,null,null,null,"51144","MEAT CLNING SUPPLIES"]
[null,null,null,null,null,null,null,null,null,null,null,null,null,null,null,null,null,null,null,null,null,null,null,null,null,null,null,null,null,null,null,null,null,null,null,null,null,null,null,null,null,null,null,null,null,null,null,null,null,null,null,null,null,null,null,null,null,null,null,null,null,null,null,"51145","MEAT PREP SUPPLIES"]
[null,null,null,null,null,null,null,null,null,null,null,null,null,null,null,null,null,null,null,null,null,null,null,null,null,null,null,null,null,null,null,null,null,null,null,null,null,null,null,null,null,null,null,null,null,null,null,null,null,null,null,null,null,null,null,null,null,null,null,null,null,null,null,"51146","MT/SFD/DL/BK SUPPL"]
[null,null,null,null,null,null,null,null,null,null,null,null,null,null,null,null,null,null,null,null,null,null,null,null,null,null,null,null,null,null,null,null,null,null,null,null,null,null,null,null,null,null,null,null,null,null,null,null,null,null,null,null,null,null,null,null,null,null,null,null,null,null,null,"51147","MT/SFD/DL/BK COS SUP"]
[null,null,null,null,null,null,null,null,null,null,null,null,null,null,null,null,null,null,null,null,null,null,null,null,null,null,null,null,null,null,null,null,null,null,null,null,null,null,null,null,null,null,null,null,null,null,null,null,null,null,null,null,null,null,null,null,null,null,null,null,null,null,null,"51148","MEAT SEAFD SUPPLIES"]
[null,null,null,null,null,null,null,null,null,null,null,null,null,null,null,null,null,null,null,null,null,null,null,null,null,null,null,null,null,null,null,null,null,null,null,null,null,null,null,null,null,null,null,null,null,null,null,null,null,null,null,null,null,null,null,null,null,null,null,null,null,null,null,"51149","MEAT/SEAFD COS SUPL"]
[null,null,null,null,null,null,null,null,null,null,null,null,null,null,null,null,null,null,null,null,null,null,null,null,null,null,null,null,null,null,null,null,null,null,null,null,null,null,null,null,null,null,null,null,null,null,null,null,null,null,null,null,null,null,null,null,null,null,null,null,null,null,null,"51150","MEAT/SEAFD FLM/CELLO"]
[null,null,null,null,null,null,null,null,null,null,null,null,null,null,null,null,null,null,null,null,null,null,null,null,null,null,null,null,null,null,null,null,null,null,null,null,null,null,null,null,null,null,null,null,null,null,null,null,null,null,null,null,null,null,null,null,null,null,null,null,null,null,null,"51151","MT/SFD/DL/BK/PR CLN S"]
[null,null,null,null,null,null,null,null,null,null,null,null,null,null,null,null,null,null,null,null,null,null,null,null,null,null,null,null,null,null,null,null,null,null,null,null,null,null,null,null,null,null,null,null,null,null,null,null,null,null,null,null,null,null,null,null,null,null,null,null,null,null,null,"51152","MT/SFD/DL/BK/PR PKG/LBL "]
[null,null,null,null,null,null,null,null,null,null,null,null,null,null,null,null,null,null,null,null,null,null,null,null,null,null,null,null,null,null,null,null,null,null,null,null,null,null,null,null,null,null,null,null,null,null,null,null,null,null,null,null,null,null,null,null,null,null,null,null,null,null,null,"51153","MT/SFD/DL/BK/PR FLM/CEL"]
[null,null,null,null,null,null,null,null,null,null,null,null,null,null,null,null,null,null,null,null,null,null,null,null,null,null,null,null,null,null,null,null,null,null,null,null,null,null,null,null,null,null,null,null,null,null,null,null,null,null,null,null,null,null,null,null,null,null,null,null,null,null,null,"51154","MT/SFD/DL/BK/PR FLRCR"]
[null,null,null,null,null,null,null,null,null,null,null,null,null,null,null,null,null,null,null,null,null,null,null,null,null,null,null,null,null,null,null,null,null,null,null,null,null,null,null,null,null,null,null,null,null,null,null,null,null,null,null,null,null,null,null,null,null,null,null,null,null,null,null,"51216","PROD COS SUPPLIES"]
[null,null,null,null,null,null,null,null,null,null,null,null,null,null,null,null,null,null,null,null,null,null,null,null,null,null,null,null,null,null,null,null,null,null,null,null,null,null,null,null,null,null,null,null,null,null,null,null,null,null,null,null,null,null,null,null,null,null,null,null,null,null,null,"51223","FLRL PKGING/LABELS"]
[null,null,null,null,null,null,null,null,null,null,null,null,null,null,null,null,null,null,null,null,null,null,null,null,null,null,null,null,null,null,null,null,null,null,null,null,null,null,null,null,null,null,null,null,null,null,null,null,null,null,null,null,null,null,null,null,null,null,null,null,null,null,null,"51224","FLRL COS SUPPLIES"]
[null,null,null,null,null,null,null,null,null,null,null,null,null,null,null,null,null,null,null,null,null,null,null,null,null,null,null,null,null,null,null,null,null,null,null,null,null,null,null,null,null,null,null,null,null,null,null,null,null,null,null,null,null,null,null,null,null,null,null,null,null,null,null,"51225","PROD EXP SUPPLIES"]
[null,null,null,null,null,null,null,null,null,null,null,null,null,null,null,null,null,null,null,null,null,null,null,null,null,null,null,null,null,null,null,null,null,null,null,null,null,null,null,null,null,null,null,null,null,null,null,null,null,null,null,null,null,null,null,null,null,null,null,null,null,null,null,"51240","PROD SECRTY LABELS"]
[null,null,null,null,null,null,null,null,null,null,null,null,null,null,null,null,null,null,null,null,null,null,null,null,null,null,null,null,null,null,null,null,null,null,null,null,null,null,null,null,null,null,null,null,null,null,null,null,null,null,null,null,null,null,null,null,null,null,null,null,null,null,null,"51241","PROD PKGNG/LABELS"]
[null,null,null,null,null,null,null,null,null,null,null,null,null,null,null,null,null,null,null,null,null,null,null,null,null,null,null,null,null,null,null,null,null,null,null,null,null,null,null,null,null,null,null,null,null,null,null,null,null,null,null,null,null,null,null,null,null,null,null,null,null,null,null,"51242","PROD FILM/CELLOPHN"]
[null,null,null,null,null,null,null,null,null,null,null,null,null,null,null,null,null,null,null,null,null,null,null,null,null,null,null,null,null,null,null,null,null,null,null,null,null,null,null,null,null,null,null,null,null,null,null,null,null,null,null,null,null,null,null,null,null,null,null,null,null,null,null,"51243","PROD POP SUPPLIES"]
[null,null,null,null,null,null,null,null,null,null,null,null,null,null,null,null,null,null,null,null,null,null,null,null,null,null,null,null,null,null,null,null,null,null,null,null,null,null,null,null,null,null,null,null,null,null,null,null,null,null,null,null,null,null,null,null,null,null,null,null,null,null,null,"51244","PROD BAGS"]
[null,null,null,null,null,null,null,null,null,null,null,null,null,null,null,null,null,null,null,null,null,null,null,null,null,null,null,null,null,null,null,null,null,null,null,null,null,null,null,null,null,null,null,null,null,null,null,null,null,null,null,null,null,null,null,null,null,null,null,null,null,null,null,"51245","PROD CLEANG SUPPLS"]
[null,null,null,null,null,null,null,null,null,null,null,null,null,null,null,null,null,null,null,null,null,null,null,null,null,null,null,null,null,null,null,null,null,null,null,null,null,null,null,null,null,null,null,null,null,null,null,null,null,null,null,null,null,null,null,null,null,null,null,null,null,null,null,"51246","PROD TRNING SUPPLIES"]
[null,null,null,null,null,null,null,null,null,null,null,null,null,null,null,null,null,null,null,null,null,null,null,null,null,null,null,null,null,null,null,null,null,null,null,null,null,null,null,null,null,null,null,null,null,null,null,null,null,null,null,null,null,null,null,null,null,null,null,null,null,null,null,"51247","PROD UNIFORMS"]
[null,null,null,null,null,null,null,null,null,null,null,null,null,null,null,null,null,null,null,null,null,null,null,null,null,null,null,null,null,null,null,null,null,null,null,null,null,null,null,null,null,null,null,null,null,null,null,null,null,null,null,null,null,null,null,null,null,null,null,null,null,null,null,"51248","PROD/MT SUPPLIES"]
[null,null,null,null,null,null,null,null,null,null,null,null,null,null,null,null,null,null,null,null,null,null,null,null,null,null,null,null,null,null,null,null,null,null,null,null,null,null,null,null,null,null,null,null,null,null,null,null,null,null,null,null,null,null,null,null,null,null,null,null,null,null,null,"51249","PROD/MT COS SUPPLIES"]
[null,null,null,null,null,null,null,null,null,null,null,null,null,null,null,null,null,null,null,null,null,null,null,null,null,null,null,null,null,null,null,null,null,null,null,null,null,null,null,null,null,null,null,null,null,null,null,null,null,null,null,null,null,null,null,null,null,null,null,null,null,null,null,"51250","FLORAL SUPPLIES"]
[null,null,null,null,null,null,null,null,null,null,null,null,null,null,null,null,null,null,null,null,null,null,null,null,null,null,null,null,null,null,null,null,null,null,null,null,null,null,null,null,null,null,null,null,null,null,null,null,null,null,null,null,null,null,null,null,null,null,null,null,null,null,null,"51325","CONSUMR SVC SUPPLIES"]
[null,null,null,null,null,null,null,null,null,null,null,null,null,null,null,null,null,null,null,null,null,null,null,null,null,null,null,null,null,null,null,null,null,null,null,null,null,null,null,null,null,null,null,null,null,null,null,null,null,null,null,null,null,null,null,null,null,null,null,null,null,null,null,"51517","DELI COS SUPPLIES"]
[null,null,null,null,null,null,null,null,null,null,null,null,null,null,null,null,null,null,null,null,null,null,null,null,null,null,null,null,null,null,null,null,null,null,null,null,null,null,null,null,null,null,null,null,null,null,null,null,null,null,null,null,null,null,null,null,null,null,null,null,null,null,null,"51525","DELI EXP SUPPLIES"]
[null,null,null,null,null,null,null,null,null,null,null,null,null,null,null,null,null,null,null,null,null,null,null,null,null,null,null,null,null,null,null,null,null,null,null,null,null,null,null,null,null,null,null,null,null,null,null,null,null,null,null,null,null,null,null,null,null,null,null,null,null,null,null,"51540","DELI SECURITY LABELS"]
[null,null,null,null,null,null,null,null,null,null,null,null,null,null,null,null,null,null,null,null,null,null,null,null,null,null,null,null,null,null,null,null,null,null,null,null,null,null,null,null,null,null,null,null,null,null,null,null,null,null,null,null,null,null,null,null,null,null,null,null,null,null,null,"51541","DELI PAKGING/LABELS"]
[null,null,null,null,null,null,null,null,null,null,null,null,null,null,null,null,null,null,null,null,null,null,null,null,null,null,null,null,null,null,null,null,null,null,null,null,null,null,null,null,null,null,null,null,null,null,null,null,null,null,null,null,null,null,null,null,null,null,null,null,null,null,null,"51542","DELI FILM/CELLOPHN"]
[null,null,null,null,null,null,null,null,null,null,null,null,null,null,null,null,null,null,null,null,null,null,null,null,null,null,null,null,null,null,null,null,null,null,null,null,null,null,null,null,null,null,null,null,null,null,null,null,null,null,null,null,null,null,null,null,null,null,null,null,null,null,null,"51543","DELI POP SUPPLIES"]
[null,null,null,null,null,null,null,null,null,null,null,null,null,null,null,null,null,null,null,null,null,null,null,null,null,null,null,null,null,null,null,null,null,null,null,null,null,null,null,null,null,null,null,null,null,null,null,null,null,null,null,null,null,null,null,null,null,null,null,null,null,null,null,"51544","DELI BAGS"]
[null,null,null,null,null,null,null,null,null,null,null,null,null,null,null,null,null,null,null,null,null,null,null,null,null,null,null,null,null,null,null,null,null,null,null,null,null,null,null,null,null,null,null,null,null,null,null,null,null,null,null,null,null,null,null,null,null,null,null,null,null,null,null,"51545","DELI CLEANG SUPPLIES"]
[null,null,null,null,null,null,null,null,null,null,null,null,null,null,null,null,null,null,null,null,null,null,null,null,null,null,null,null,null,null,null,null,null,null,null,null,null,null,null,null,null,null,null,null,null,null,null,null,null,null,null,null,null,null,null,null,null,null,null,null,null,null,null,"51546","DELI TRNING SUPPLIES"]
[null,null,null,null,null,null,null,null,null,null,null,null,null,null,null,null,null,null,null,null,null,null,null,null,null,null,null,null,null,null,null,null,null,null,null,null,null,null,null,null,null,null,null,null,null,null,null,null,null,null,null,null,null,null,null,null,null,null,null,null,null,null,null,"51547","DELI UNIFORMS"]
[null,null,null,null,null,null,null,null,null,null,null,null,null,null,null,null,null,null,null,null,null,null,null,null,null,null,null,null,null,null,null,null,null,null,null,null,null,null,null,null,null,null,null,null,null,null,null,null,null,null,null,null,null,null,null,null,null,null,null,null,null,null,null,"51548","DELI/BK/SFD SUPPLIES"]
[null,null,null,null,null,null,null,null,null,null,null,null,null,null,null,null,null,null,null,null,null,null,null,null,null,null,null,null,null,null,null,null,null,null,null,null,null,null,null,null,null,null,null,null,null,null,null,null,null,null,null,null,null,null,null,null,null,null,null,null,null,null,null,"51549","DL/BK/SFD COS SUPPL"]
[null,null,null,null,null,null,null,null,null,null,null,null,null,null,null,null,null,null,null,null,null,null,null,null,null,null,null,null,null,null,null,null,null,null,null,null,null,null,null,null,null,null,null,null,null,null,null,null,null,null,null,null,null,null,null,null,null,null,null,null,null,null,null,"51550","DELI/BK SUPPLIES"]
[null,null,null,null,null,null,null,null,null,null,null,null,null,null,null,null,null,null,null,null,null,null,null,null,null,null,null,null,null,null,null,null,null,null,null,null,null,null,null,null,null,null,null,null,null,null,null,null,null,null,null,null,null,null,null,null,null,null,null,null,null,null,null,"51551","DELI/BK COS SUPPLIES"]
[null,null,null,null,null,null,null,null,null,null,null,null,null,null,null,null,null,null,null,null,null,null,null,null,null,null,null,null,null,null,null,null,null,null,null,null,null,null,null,null,null,null,null,null,null,null,null,null,null,null,null,null,null,null,null,null,null,null,null,null,null,null,null,"51552","DELI/BK CLNING SUPPL"]
[null,null,null,null,null,null,null,null,null,null,null,null,null,null,null,null,null,null,null,null,null,null,null,null,null,null,null,null,null,null,null,null,null,null,null,null,null,null,null,null,null,null,null,null,null,null,null,null,null,null,null,null,null,null,null,null,null,null,null,null,null,null,null,"51553","BAKERY SECURITY LABELS"]
[null,null,null,null,null,null,null,null,null,null,null,null,null,null,null,null,null,null,null,null,null,null,null,null,null,null,null,null,null,null,null,null,null,null,null,null,null,null,null,null,null,null,null,null,null,null,null,null,null,null,null,null,null,null,null,null,null,null,null,null,null,null,null,"51554","BAKERY PKGING/LABELS"]
[null,null,null,null,null,null,null,null,null,null,null,null,null,null,null,null,null,null,null,null,null,null,null,null,null,null,null,null,null,null,null,null,null,null,null,null,null,null,null,null,null,null,null,null,null,null,null,null,null,null,null,null,null,null,null,null,null,null,null,null,null,null,null,"51555","BAKERY FILM/CELLOPHN"]
[null,null,null,null,null,null,null,null,null,null,null,null,null,null,null,null,null,null,null,null,null,null,null,null,null,null,null,null,null,null,null,null,null,null,null,null,null,null,null,null,null,null,null,null,null,null,null,null,null,null,null,null,null,null,null,null,null,null,null,null,null,null,null,"51556","BAKERY POP SUPPLIES"]
[null,null,null,null,null,null,null,null,null,null,null,null,null,null,null,null,null,null,null,null,null,null,null,null,null,null,null,null,null,null,null,null,null,null,null,null,null,null,null,null,null,null,null,null,null,null,null,null,null,null,null,null,null,null,null,null,null,null,null,null,null,null,null,"51557","BAKERY BAGS"]
[null,null,null,null,null,null,null,null,null,null,null,null,null,null,null,null,null,null,null,null,null,null,null,null,null,null,null,null,null,null,null,null,null,null,null,null,null,null,null,null,null,null,null,null,null,null,null,null,null,null,null,null,null,null,null,null,null,null,null,null,null,null,null,"51558","BAKERY CLEANG SUPPL"]
[null,null,null,null,null,null,null,null,null,null,null,null,null,null,null,null,null,null,null,null,null,null,null,null,null,null,null,null,null,null,null,null,null,null,null,null,null,null,null,null,null,null,null,null,null,null,null,null,null,null,null,null,null,null,null,null,null,null,null,null,null,null,null,"51559","BAKERY TRNING SUPPL"]
[null,null,null,null,null,null,null,null,null,null,null,null,null,null,null,null,null,null,null,null,null,null,null,null,null,null,null,null,null,null,null,null,null,null,null,null,null,null,null,null,null,null,null,null,null,null,null,null,null,null,null,null,null,null,null,null,null,null,null,null,null,null,null,"51560","BAKERY UNIFORMS"]
[null,null,null,null,null,null,null,null,null,null,null,null,null,null,null,null,null,null,null,null,null,null,null,null,null,null,null,null,null,null,null,null,null,null,null,null,null,null,null,null,null,null,null,null,null,null,null,null,null,null,null,null,null,null,null,null,null,null,null,null,null,null,null,"51561","BAKERY COS SUPPLIES"]
[null,null,null,null,null,null,null,null,null,null,null,null,null,null,null,null,null,null,null,null,null,null,null,null,null,null,null,null,null,null,null,null,null,null,null,null,null,null,null,null,null,null,null,null,null,null,null,null,null,null,null,null,null,null,null,null,null,null,null,null,null,null,null,"51562","BAKERY EXP SUPPLIES"]
[null,null,null,null,null,null,null,null,null,null,null,null,null,null,null,null,null,null,null,null,null,null,null,null,null,null,null,null,null,null,null,null,null,null,null,null,null,null,null,null,null,null,null,null,null,null,null,null,null,null,null,null,null,null,null,null,null,null,null,null,null,null,null,"51616","SEAFOOD COS SUPPLIES"]
[null,null,null,null,null,null,null,null,null,null,null,null,null,null,null,null,null,null,null,null,null,null,null,null,null,null,null,null,null,null,null,null,null,null,null,null,null,null,null,null,null,null,null,null,null,null,null,null,null,null,null,null,null,null,null,null,null,null,null,null,null,null,null,"51625","SEAFOOD EXP SUPPLIES"]
[null,null,null,null,null,null,null,null,null,null,null,null,null,null,null,null,null,null,null,null,null,null,null,null,null,null,null,null,null,null,null,null,null,null,null,null,null,null,null,null,null,null,null,null,null,null,null,null,null,null,null,null,null,null,null,null,null,null,null,null,null,null,null,"51640","SEAFOOD SECUR LABELS"]
[null,null,null,null,null,null,null,null,null,null,null,null,null,null,null,null,null,null,null,null,null,null,null,null,null,null,null,null,null,null,null,null,null,null,null,null,null,null,null,null,null,null,null,null,null,null,null,null,null,null,null,null,null,null,null,null,null,null,null,null,null,null,null,"51641","SEAFD PCKGING/LABELS"]
[null,null,null,null,null,null,null,null,null,null,null,null,null,null,null,null,null,null,null,null,null,null,null,null,null,null,null,null,null,null,null,null,null,null,null,null,null,null,null,null,null,null,null,null,null,null,null,null,null,null,null,null,null,null,null,null,null,null,null,null,null,null,null,"51642","SEAFD FILM/CELLOPHN"]
[null,null,null,null,null,null,null,null,null,null,null,null,null,null,null,null,null,null,null,null,null,null,null,null,null,null,null,null,null,null,null,null,null,null,null,null,null,null,null,null,null,null,null,null,null,null,null,null,null,null,null,null,null,null,null,null,null,null,null,null,null,null,null,"51643","SEAFD POP SUPPLIES"]
[null,null,null,null,null,null,null,null,null,null,null,null,null,null,null,null,null,null,null,null,null,null,null,null,null,null,null,null,null,null,null,null,null,null,null,null,null,null,null,null,null,null,null,null,null,null,null,null,null,null,null,null,null,null,null,null,null,null,null,null,null,null,null,"51644","SEAFOOD BAGS"]
[null,null,null,null,null,null,null,null,null,null,null,null,null,null,null,null,null,null,null,null,null,null,null,null,null,null,null,null,null,null,null,null,null,null,null,null,null,null,null,null,null,null,null,null,null,null,null,null,null,null,null,null,null,null,null,null,null,null,null,null,null,null,null,"51645","SEAFD CLEANG SUPPLIES"]
[null,null,null,null,null,null,null,null,null,null,null,null,null,null,null,null,null,null,null,null,null,null,null,null,null,null,null,null,null,null,null,null,null,null,null,null,null,null,null,null,null,null,null,null,null,null,null,null,null,null,null,null,null,null,null,null,null,null,null,null,null,null,null,"51646","SEAFD TRNING SUPPLIES"]
[null,null,null,null,null,null,null,null,null,null,null,null,null,null,null,null,null,null,null,null,null,null,null,null,null,null,null,null,null,null,null,null,null,null,null,null,null,null,null,null,null,null,null,null,null,null,null,null,null,null,null,null,null,null,null,null,null,null,null,null,null,null,null,"51647","SEAFOOD UNIFORMS"]
[null,null,null,null,null,null,null,null,null,null,null,null,null,null,null,null,null,null,null,null,null,null,null,null,null,null,null,null,null,null,null,null,null,null,null,null,null,null,null,null,null,null,null,null,null,null,null,null,null,null,null,null,null,null,null,null,null,null,null,null,null,null,null,"70199","GROCERY"]
[null,null,null,null,null,null,null,null,null,null,null,null,null,null,null,null,null,null,null,null,null,null,null,null,null,null,null,null,null,null,null,null,null,null,null,null,null,null,null,null,null,null,null,null,null,null,null,null,null,null,null,null,null,null,null,null,null,null,null,null,null,null,null,"70607","MILK"]
[null,null,null,null,null,null,null,null,null,null,null,null,null,null,null,null,null,null,null,null,null,null,null,null,null,null,null,null,null,null,null,null,null,null,null,null,null,null,null,null,null,null,null,null,null,null,null,null,null,null,null,null,null,null,null,null,null,null,null,null,null,null,null,"70608","EGGS"]
[null,null,null,null,null,null,null,null,null,null,null,null,null,null,null,null,null,null,null,null,null,null,null,null,null,null,null,null,null,null,null,null,null,null,null,null,null,null,null,null,null,null,null,null,null,null,null,null,null,null,null,null,null,null,null,null,null,null,null,null,null,null,null,"70609","CHILLED JUICE"]
[null,null,null,null,null,null,null,null,null,null,null,null,null,null,null,null,null,null,null,null,null,null,null,null,null,null,null,null,null,null,null,null,null,null,null,null,null,null,null,null,null,null,null,null,null,null,null,null,null,null,null,null,null,null,null,null,null,null,null,null,null,null,null,"70619","CMPNY MFG JUICE"]
[null,null,null,null,null,null,null,null,null,null,null,null,null,null,null,null,null,null,null,null,null,null,null,null,null,null,null,null,null,null,null,null,null,null,null,null,null,null,null,null,null,null,null,null,null,null,null,null,null,null,null,null,null,null,null,null,null,null,null,null,null,null,null,"70699","DAIRY"]
[null,null,null,null,null,null,null,null,null,null,null,null,null,null,null,null,null,null,null,null,null,null,null,null,null,null,null,null,null,null,null,null,null,null,null,null,null,null,null,null,null,null,null,null,null,null,null,null,null,null,null,null,null,null,null,null,null,null,null,null,null,null,null,"70702","ICE CREAM"]
[null,null,null,null,null,null,null,null,null,null,null,null,null,null,null,null,null,null,null,null,null,null,null,null,null,null,null,null,null,null,null,null,null,null,null,null,null,null,null,null,null,null,null,null,null,null,null,null,null,null,null,null,null,null,null,null,null,null,null,null,null,null,null,"70799","FROZEN"]
[null,null,null,null,null,null,null,null,null,null,null,null,null,null,null,null,null,null,null,null,null,null,null,null,null,null,null,null,null,null,null,null,null,null,null,null,null,null,null,null,null,null,null,null,null,null,null,null,null,null,null,null,null,null,null,null,null,null,null,null,null,null,null,"71025","DAIRY SUPPLIES"]

{"sheet":"DSD Store Assortment and Cost","index":2,"n_rows":26,"n_cols":14,"rows_kept":26,"cut":false,"hidden":false,"merged":[[0,0,0,7],[5,0,5,7],[1,0,2,7],[0,10,0,14],[5,10,5,14]]}
["DSD VENDORS ONLY",null,null,null,null,null,null,null,null,null,"DSD VENDOR Cost"]
["Please indicate SEG banners to be serviced:"]
[]
["WINN-DIXIE",null,"BI-LO",null,"HARVEYS",null,"FRESCO Y MAS"]
[]
["Please list store numbers below to be serviced if servicing only a portion of a banner:",null,null,null,null,null,null,null,null,null,"Cost by Cost Zone"]
[null,null,null,null,null,null,null,null,null,null,"CZ 1",null,null,"CZ 21"]
[null,null,null,null,null,null,null,null,null,null,"CZ 2",null,null,"CZ 22"]
[null,null,null,null,null,null,null,null,null,null,"CZ 3",null,null,"CZ 23"]
[null,null,null,null,null,null,null,null,null,null,"CZ 4",null,null,"CZ 24"]
[null,null,null,null,null,null,null,null,null,null,"CZ 5",null,null,"CZ 25"]
[null,null,null,null,null,null,null,null,null,null,"CZ 6",null,null,"CZ 26"]
[null,null,null,null,null,null,null,null,null,null,"CZ 7",null,null,"CZ 27"]
[null,null,null,null,null,null,null,null,null,null,"CZ 8",null,null,"CZ 28"]
[null,null,null,null,null,null,null,null,null,null,"CZ 9",null,null,"CZ 29"]
[null,null,null,null,null,null,null,null,null,null,"CZ 10",null,null,"CZ 30"]
[null,null,null,null,null,null,null,null,null,null,"CZ 11",null,null,"CZ 31"]
[null,null,null,null,null,null,null,null,null,null,"CZ 12",null,null,"CZ 32"]
[null,null,null,null,null,null,null,null,null,null,"CZ 13",null,null,"CZ 33"]
[null,null,null,null,null,null,null,null,null,null,"CZ 14",null,null,"CZ 34"]
[null,null,null,null,null,null,null,null,null,null,"CZ 15",null,null,"CZ 35"]
[null,null,null,null,null,null,null,null,null,null,"CZ 16",null,null,"CZ 36"]
[null,null,null,null,null,null,null,null,null,null,"CZ 17",null,null,"CZ 37"]
[null,null,null,null,null,null,null,null,null,null,"CZ 18",null,null,"CZ 38"]
[null,null,null,null,null,null,null,null,null,null,"CZ 19",null,null,"CZ 39"]
[null,null,null,null,null,null,null,null,null,null,"CZ 20",null,null,"CZ 40"]

{"sheet":"DROP DOWN BOX SOURCE","index":3,"n_rows":372,"n_cols":26,"rows_kept":372,"cut":false,"hidden":true,"merged":[]}
["DEPARTMENT (DO NOT SORT LIST)","DAYS TO UPDATE CATEGORY (DO NOT SORT LIST)","PLANOGRAM UPDATE TYPE","CATEGORY OWNER","CATEGORIES","1Temporary Authorization","2Master Assortment Authorization",null,null,null,null,null,null,null,null,null,null,null,null,null,null,null,null,null,null,{"$f":"IF(ISERROR(VLOOKUP(#REF!,'DROP DOWN BOX SOURCE'!$A:$B,2,)),\"N/A\",VLOOKUP(#REF!,'DROP DOWN BOX SOURCE'!$A:$B,2,))","v":"N/A"}]
["N/A","N/A","N/A","AMANDA BLAKESLEE","ADULT INCONTINENCE","N/A","N/A",null,null,null,null,null,null,null,null,null,null,null,null,null,null,null,null,null,null,{"$f":"IF(ISERROR(VLOOKUP(#REF!,'DROP DOWN BOX SOURCE'!$A:$B,2,)),\"N/A\",VLOOKUP(#REF!,'DROP DOWN BOX SOURCE'!$A:$B,2,))","v":"N/A"}]
["GROCERY",77,"NEW ITEM CUT IN (NICI)","ANDY ANDREWS","ADULT NUTRITION","1 DISCONTINUED_ALL BANNERS & DC'S","2 BAKERY_ALL BANNERS & DC'S",null,null,null,null,null,null,null,null,null,null,null,null,null,null,null,null,null,null,{"$f":"IF(ISERROR(VLOOKUP(#REF!,'DROP DOWN BOX SOURCE'!$A:$B,2,)),\"N/A\",VLOOKUP(#REF!,'DROP DOWN BOX SOURCE'!$A:$B,2,))","v":"N/A"}]
["DAIRY",77,"***CATEGORY BUSINESS PLAN (CBP)","BARBARA TYREE","ADULT PARTY","1 SHIPPER-PALLET_ALL BANNERS & DC'S","2 DELI_ALL BANNERS & DC'S"]
["FROZEN",77,"***VENDOR FUNDED PROJECT","BRAD MULLINAX","AIR CARE","**STORE SPECIFIC ZPOG","2 DSD AIR FILTERS_ALL BANNERS & DC'S"]
["GENERAL MERCHANDISE",105,"CODE and/or UPC CHANGE ONLY (CC)","BRADLEY HANSMAN","AIR FILTERS",null,"2 DSD BEACH_ALL BANNERS & DC'S"]
["MEAT",42,null,"BROOKE LEVER","ANALGESICS",null,"2 DSD BEER_ALL BANNERS & DC'S"]
["DELI",42,null,"CARONLINE CAGE","ASIAN",null,"2 DSD BREAD AND SWEET GOODS_ALL BANNERS & DC'S"]
["BAKERY",42,null,"CASSIE KIRKLAND","AUTOMOTIVE",null,"2 DSD CHIPS_ALL BANNERS & DC'S"]
["PRODUCE",42,null,"CHERI SHULLEK","BABY ACCESSORIES -INFANT",null,"2 DSD CLIPS STRIPS_ALL BANNERS & DC'S"]
["NATURAL/ORGANIC",77,null,"CHERYL SEBER","BABY ACCESSORIES -TODDLER",null,"2 DSD CSD_ALL BANNERS & DC'S"]
["LOCAL",77,null,"CHIRSTOPHER KASZANITS","BABY DIAPERS",null,"2 DSD KOSHER_ALL BANNERS & DC'S"]
["TAXABLE GROCERY",77,null,"CHRIS ATTER","BABY FOOD",null,"2 DSD LOCAL_ALL BANNERS & DC'S"]
[null,null,null,"CHRISOPHER POTESTIO","BABY FORMULA",null,"2 DSD PRODUCE_ALL BANNERS & DC'S"]
[null,null,null,"CORIN OLDHAM","BABY HBC",null,"2 DSD SNACKS_ALL BANNERS & DC'S"]
["dropdown426",null,null,"DANIEL RYNDAK","BABY HYDRATION",null,"2 DSD SPIRITS_ALL BANNERS & DC'S"]
[null,null,null,"DANIELLE PEIRCE","BABY WIPES",null,"2 FIRELOGS_ALL BANNERS & DC'S"]
[null,null,null,"DAVID DAWSON","BADIA SPICES",null,"2 HARVEY DSD_TMM VENDOR_ALL"]
[null,null,null,"DEBORA DEEMS","BAKEWARE",null,"2 HURRICANE EMERGENCY_ALL BANNERS & DC'S"]
[null,null,null,"DEREK FREDERICKSON","BAKING NEEDS",null,"2 INDIAN_ALL BANNERS & DC'S"]
[null,null,null,"DEREK LOTT","BARWARE",null,"2 MARKET SEAFOOD_ALL BANNERS & DC'S"]
[null,null,null,"DEWAYNE RABON","BATH CARE",null,"2 MEAT_ALL BANNERS & DC'S"]
[null,null,null,"DOUG OWENBY","BATH PUFFS",null,"2 OWN BRANDS CC_ALL BANNERS & DCs"]
[null,null,null,"EMISAEL ALVAREZ","BATH TISSUE",null,"2 PHARMACY_ALL BANNERS & DC'S"]
[null,null,null,"FRANK THURLOW","BATTERIES",null,"2 SEASONAL CANDY_ALL BANNERS & DC'S"]
[null,null,null,"GARY EVANS","BEER",null,"2 SEASONAL DAIRY FROZEN_ALL BANNERS & DC'S"]
[null,null,null,"GREGORY MINADEO","BETTER FOR YOU - CHIPS",null,"2 SEASONAL GMD_ALL BANNERS & DC'S"]
[null,null,null,"HEATH NIXON","BETTER FOR YOU - COOKIES & CRACKERS",null,"2 SEASONAL GROCERY_ALL BANNERS AND DC'S"]
[null,null,null,"IAN SCHMID","BLEACH",null,"2 TOBACCO_ALL BANNERS & DC'S"]
[null,null,null,"JAMES BALISTRIERE","BOSNIAN",null,"2 UNFI_ALL BANNERS & DC'S"]
[null,null,null,"JANE HOUGHTON","BOX DINNERS"]
[null,null,null,"JANEL PLITT","BRAZILIAN"]
[null,null,null,"JASON REID","BREAD"]
[null,null,null,"JEFF ZUNICH","BRITISH"]
[null,null,null,"JENNIFER BRYNER","BUTTER & MARGARINE"]
[null,null,null,"JENNYFER DICKENSON","CAJUN SPICES"]
[null,null,null,"JEREMY LATRAVERSE","CAKE & BAKING MIXES"]
[null,null,null,"JERRY WEAVER","CAKE DECORATIONS"]
[null,null,null,"JOHN JANSEN","CANDLES"]
[null,null,null,"JOSH PIATEK","CANDY - CHECKLANE"]
[null,null,null,"KAREN LAGARDE","CANDY - INLINE"]
[null,null,null,"KATIE STOKES","CANDY - SPECIALTY"]
[null,null,null,"KATRINA PETERSON","CANNED & BOTTLED NECTAR"]
[null,null,null,"KELLY FAIRBROTHER","CANNED BEANS"]
[null,null,null,"KRISTINE HOUSEND","CANNED CHILI"]
[null,null,null,"LARRY ISOM","CANNED FISH"]
[null,null,null,"LESLIE MEYER","CANNED FRUIT"]
[null,null,null,"LINDSEY CAHILL","CANNED MEAT"]
[null,null,null,"MICHAEL CARTER","CANNED MILK"]
[null,null,null,"MICHAEL HINKLE","CANNED PASTA"]
[null,null,null,"MICHELLE MORRELL","CANNED TOMATOES"]
[null,null,null,"MIKE BOVE","CANNED VEGETABLES"]
[null,null,null,"MIKE RUSSELL","CANNING"]
[null,null,null,"NATASHA HAMILTON","CANNISTER SNACKS"]
[null,null,null,"NICOLE HATFIELD","CARRIBEAN COOKWARE"]
[null,null,null,"NICOLE LUCIANO","CAT FOOD - BAGGED"]
[null,null,null,"PAIGE LANGENDERFER","CAT FOOD - CANNED"]
[null,null,null,"PAUL TREMBLAY","CAT LITTER"]
[null,null,null,"PAULINA DESSOFFY","CELLPHONES"]
[null,null,null,"PETER REDMOND","CENTRAL AMERICAN"]
[null,null,null,"RICHARD STURGIL","CEREAL - BAGGED & INDIVIDUAL"]
[null,null,null,"ROLAND LARINO","CEREAL - BETTER FOR YOU"]
[null,null,null,"RUTH MCLENNAN","CEREAL - MAINSTREAM"]
[null,null,null,"SARAH GROVES","CHARCOAL & BBQ TOOLS"]
[null,null,null,"SCOTT WYNN","CHEESE"]
[null,null,null,"SEMON CULL","COCKTAILS MIXERS"]
[null,null,null,"SHAWN GARVERICH","COCOA"]
[null,null,null,"SHAWN SAVAGE","COFFEE - MAINSTREAM"]
[null,null,null,"STACEY MCSHANE","COFFEE - PREMIUM"]
[null,null,null,"STEPHANEY GIPSON","COFFEE - SINGLE SERVE"]
[null,null,null,"SUSAN MOORE","COFFEE CREAMERS"]
[null,null,null,"TAYLOR JACKSON","COFFEE FILTERS & ACCESSORIES"]
[null,null,null,"THERESA MUNDER","CONDIMENTS - KETCHUP & HOT SAUCE"]
[null,null,null,"TIFANIE KING","CONDIMENTS - MAYONNAISE & MUSTARD"]
[null,null,null,"TIM HORTON","CONDIMENTS - MEAT SAUCES"]
[null,null,null,"TIM MCNAMARA","CONDIMENTS - SALAD DRESSINGS & CROUTONS"]
[null,null,null,"TRICIA ZYLA","CONVENIENCE BREAKFAST"]
[null,null,null,"TROY BUEHNER","COOKIES"]
[null,null,null,"VERONA MATTHEW","COOKING OILS"]
[null,null,null,"VICTORIA LEVY","COOKWARE"]
[null,null,null,"WALT GROSSMAN","COSMETICS - ASSORTED NAILS"]
[null,null,null,"WHITNEE DASH","COSMETICS - COLORMATES"]
[null,null,null,"WILLIAM ADAIR","COSMETICS - COVER GIRL"]
[null,null,null,null,"COSMETICS - ETHNIC BLACK"]
[null,null,null,null,"COSMETICS - L'OREAL"]
[null,null,null,null,"COSMETICS - MAYBELLINE"]
[null,null,null,null,"COSMETICS - MILANI"]
[null,null,null,null,"COSMETICS - MISCELLANOUS"]
[null,null,null,null,"COSMETICS - PUFFS"]
[null,null,null,null,"COSMETICS - QUEEN"]
[null,null,null,null,"COSMETICS - RIMMEL"]
[null,null,null,null,"COSMETICS - SALLY HANSEN"]
[null,null,null,null,"COSMETICS - STUDIO BASICS"]
[null,null,null,null,"COSMETICS - TOPCARE IMPLEMENTS"]
[null,null,null,null,"COSMETICS - WD COSMETICS"]
[null,null,null,null,"COSMETICS - WET N WILD"]
[null,null,null,null,"CRACKERS"]
[null,null,null,null,"CREAM CHEESE & BAGEL"]
[null,null,null,null,"CSD - CHEK"]
[null,null,null,null,"CSD - COCA-COLA"]
[null,null,null,null,"CSD - DPSG"]
[null,null,null,null,"CSD - PEPSI"]
[null,null,null,null,"CSD - SPECIALTY"]
[null,null,null,null,"CUBAN CRACKERS"]
[null,null,null,null,"CULTURED"]
[null,null,null,null,"CUPS & PLATES"]
[null,null,null,null,"DEODORANT"]
[null,null,null,null,"DIABETIC CARE"]
[null,null,null,null,"DIGESTIVE"]
[null,null,null,null,"DISH DETERGENTS"]
[null,null,null,null,"DOG FOOD - BAGGED"]
[null,null,null,null,"DOG FOOD - CANNED"]
[null,null,null,null,"DOG TREATS"]
[null,null,null,null,"DOLLAR - GMD"]
[null,null,null,null,"DOLLAR - GROCERY"]
[null,null,null,null,"DOLLAR - PET SUPPLIES"]
[null,null,null,null,"DRIED FRUIT"]
[null,null,null,null,"DRINK MIXERS"]
[null,null,null,null,"DRY BEANS"]
[null,null,null,null,"EGGS"]
[null,null,null,null,"ENERGY DRINKS"]
[null,null,null,null,"ENHANCED KITCHEN TOOLS"]
[null,null,null,null,"ETHNIC - AIR FRESHNER"]
[null,null,null,null,"ETHNIC - BEAUTY"]
[null,null,null,null,"ETHNIC - HAIR ACCESSORIES"]
[null,null,null,null,"ETHNIC - HAIR CARE"]
[null,null,null,null,"ETHNIC -NATURAL BEAUTY"]
[null,null,null,null,"EYE & EAR CARE"]
[null,null,null,null,"FABRIC SOFTNER"]
[null,null,null,null,"FACE CARE"]
[null,null,null,null,"FACIAL TISSUE"]
[null,null,null,null,"FAMILY PLANNING"]
[null,null,null,null,"FEMININE HYGIENE"]
[null,null,null,null,"FIRELOGS"]
[null,null,null,null,"FIRST AID"]
[null,null,null,null,"FLOOR CARE"]
[null,null,null,null,"FLOOR CLEANERS"]
[null,null,null,null,"FLOOR WIPES"]
[null,null,null,null,"FLOUR & MEAL"]
[null,null,null,null,"FOILS BAGS WRAPS"]
[null,null,null,null,"FOILWARE"]
[null,null,null,null,"FOOD SERVICE"]
[null,null,null,null,"FOOD STORAGE"]
[null,null,null,null,"FOOT CARE"]
[null,null,null,null,"FRONT END GMD"]
[null,null,null,null,"FROZEN BISCUITS"]
[null,null,null,null,"FROZEN BREAD"]
[null,null,null,null,"FROZEN BREAKFAST"]
[null,null,null,null,"FROZEN CAKES"]
[null,null,null,null,"FROZEN CHICKEN"]
[null,null,null,null,"FROZEN DESSERT TOPPING"]
[null,null,null,null,"FROZEN FRUIT"]
[null,null,null,null,"FROZEN JUICE"]
[null,null,null,null,"FROZEN MARKET - BREAKFAST"]
[null,null,null,null,"FROZEN MARKET - BURGER"]
[null,null,null,null,"FROZEN MARKET - CHICKEN"]
[null,null,null,null,"FROZEN MARKET - SNACKS"]
[null,null,null,null,"FROZEN MEALS - MULTI SERVE"]
[null,null,null,null,"FROZEN MEALS - SINGLE SERVE"]
[null,null,null,null,"FROZEN MEATLESS"]
[null,null,null,null,"FROZEN NATURAL"]
[null,null,null,null,"FROZEN NOVELTIES"]
[null,null,null,null,"FROZEN PASTA"]
[null,null,null,null,"FROZEN PIES"]
[null,null,null,null,"FROZEN PIZZA"]
[null,null,null,null,"FROZEN POTATOES"]
[null,null,null,null,"FROZEN SEAFOOD"]
[null,null,null,null,"FROZEN SNACKS"]
[null,null,null,null,"FROZEN SWEET GOODS"]
[null,null,null,null,"FROZEN VEGETABLES"]
[null,null,null,null,"FRUIT SNACKS"]
[null,null,null,null,"GELATIN & PUDDING"]
[null,null,null,null,"GERMAN"]
[null,null,null,null,"GLASSWARE"]
[null,null,null,null,"GLOVES"]
[null,null,null,null,"GMD CLEANERS"]
[null,null,null,null,"GRAB & GO"]
[null,null,null,null,"GRAVY MIXES"]
[null,null,null,null,"GREEK"]
[null,null,null,null,"GROOMING"]
[null,null,null,null,"GUAVA PASTE"]
[null,null,null,null,"HAIR ACCESSORIES"]
[null,null,null,null,"HAIR APPLIANCES"]
[null,null,null,null,"HAIR CARE - PREMIUM"]
[null,null,null,null,"HAIR CARE - SALON"]
[null,null,null,null,"HAIR COLOR"]
[null,null,null,null,"HAITIAN"]
[null,null,null,null,"HARD BREADS"]
[null,null,null,null,"HARDWARE"]
[null,null,null,null,"HEALTHY LIFESTYLE"]
[null,null,null,null,"HISPANIC"]
[null,null,null,null,"HISPANIC - BEAUTY"]
[null,null,null,null,"HISPANIC - BEVERAGE"]
[null,null,null,null,"HISPANIC - CANDLES"]
[null,null,null,null,"HISPANIC - CHEESE"]
[null,null,null,null,"HISPANIC - FROZEN FOOD"]
[null,null,null,null,"HISPANIC - HBC"]
[null,null,null,null,"HISPANIC - OTC"]
[null,null,null,null,"HISPANIC EXPORT CRACKERS"]
[null,null,null,null,"HOME HEALTHCARE"]
[null,null,null,null,"HOME ORGINZATION"]
[null,null,null,null,"HOSIERY"]
[null,null,null,null,"HOT CEREAL"]
[null,null,null,null,"HOUSEHOLD CLEANERS"]
[null,null,null,null,"HYDRATION SET"]
[null,null,null,null,"ICE - BAGGED"]
[null,null,null,null,"ICE CREAM"]
[null,null,null,null,"ICE CREAM - BLUE BELL"]
[null,null,null,null,"ICE CREAM - BLUE BUNNY"]
[null,null,null,null,"ICE CREAM - BREYERS"]
[null,null,null,null,"ICE CREAM - FRIENDLIES"]
[null,null,null,null,"ICE CREAM - MAYFIELD"]
[null,null,null,null,"ICE CREAM - NESTLE"]
[null,null,null,null,"ICE CREAM - NEW ORLEANS REGIONAL"]
[null,null,null,null,"ICE CREAM - PRESTIGE"]
[null,null,null,null,"ICE CREAM - SEG"]
[null,null,null,null,"ICE CREAM - SEG ESSENTIALS"]
[null,null,null,null,"ICE CREAM - SUPER PREMIUM"]
[null,null,null,null,"ICE CREAM - VALENTINI"]
[null,null,null,null,"ICE CREAM - YOGURT"]
[null,null,null,null,"ICE CREAM CONES & TOPPINGS"]
[null,null,null,null,"INDIAN"]
[null,null,null,null,"INSECTICIDES"]
[null,null,null,null,"INSTANT POTATOES"]
[null,null,null,null,"IRONING"]
[null,null,null,null,"ISOTONICS"]
[null,null,null,null,"ITALIAN UPSCALE"]
[null,null,null,null,"JAMAICAN"]
[null,null,null,null,"JUICE - BOTTLED"]
[null,null,null,null,"JUICE - MULTIPACK"]
[null,null,null,null,"KITCHEN APPLIANCES"]
[null,null,null,null,"KITCHEN GADGETS"]
[null,null,null,null,"KITCHEN TEXTILES"]
[null,null,null,null,"KOSHER"]
[null,null,null,null,"KOSHER - DAIRY"]
[null,null,null,null,"KOSHER - FROZEN"]
[null,null,null,null,"LARGE PLASTICS"]
[null,null,null,null,"LATIN AMERICAN"]
[null,null,null,null,"LAUNDRY DETERGENT"]
[null,null,null,null,"LAWN & GARDEN"]
[null,null,null,null,"LIGHTING & ELECTRICAL"]
[null,null,null,null,"MAKE YOUR OWN PIZZA"]
[null,null,null,null,"MEAL PREPARATION"]
[null,null,null,null,"MEAT GADGETS"]
[null,null,null,null,"MEAT SNACKS"]
[null,null,null,null,"MEXICAN - SPECIALTY"]
[null,null,null,null,"MEXICAN - TEX MEX"]
[null,null,null,null,"MICROWAVE PASTA"]
[null,null,null,null,"MICROWAVE POPCORN"]
[null,null,null,null,"MILK & CREAMERS"]
[null,null,null,null,"MULTI-PACK COOKIES & CRACKERS"]
[null,null,null,null,"NATURAL - ALLERGEN FREE"]
[null,null,null,null,"NATURAL - BAKING"]
[null,null,null,null,"NATURAL - BETTER FOR YOU CHIPS"]
[null,null,null,null,"NATURAL - CANDY"]
[null,null,null,null,"NATURAL - CANNED & DRIED FRUIT"]
[null,null,null,null,"NATURAL - CEREAL"]
[null,null,null,null,"NATURAL - CLEANERS"]
[null,null,null,null,"NATURAL - CONDIMENTS"]
[null,null,null,null,"NATURAL - COOKIES & CRACKERS"]
[null,null,null,null,"NATURAL - DAIRY MEAT & CHEESE ALTERNATIVES"]
[null,null,null,null,"NATURAL - FACE CARE"]
[null,null,null,null,"NATURAL - FRONT END"]
[null,null,null,null,"NATURAL - FROZEN FOOD"]
[null,null,null,null,"NATURAL - FRUIT & NUT SPREADS"]
[null,null,null,null,"NATURAL - FUNCTIONAL BEVERAGES"]
[null,null,null,null,"NATURAL - GLUTEN FREE"]
[null,null,null,null,"NATURAL - GRAINS & ENTREES"]
[null,null,null,null,"NATURAL - HAIR & BODY"]
[null,null,null,null,"NATURAL - HOT CEREAL"]
[null,null,null,null,"NATURAL - JUICE"]
[null,null,null,null,"NATURAL - NON-DAIRY BEVRAGES"]
[null,null,null,null,"NATURAL - NUTRITION BARDS"]
[null,null,null,null,"NATURAL - PACKAGES SNACKS"]
[null,null,null,null,"NATURAL - PASTA & SAUCES"]
[null,null,null,null,"NATURAL - SALTY SNACKS"]
[null,null,null,null,"NATURAL - SHELF STABLE BEVERAGE"]
[null,null,null,null,"NATURAL - SOUP"]
[null,null,null,null,"NATURAL - SPECIALTY ICE CREAM"]
[null,null,null,null,"NATURAL - TEA & COFFEE"]
[null,null,null,null,"NATURAL - VITAMINS & SUPPLEMENTS"]
[null,null,null,null,"NATURAL VITAMINS"]
[null,null,null,null,"NEW AGE BEVERAGE"]
[null,null,null,null,"OLIVE OILS"]
[null,null,null,null,"ON THE GO SNACKS"]
[null,null,null,null,"ORAL CARE"]
[null,null,null,null,"PACKAGED DELI MEATS"]
[null,null,null,null,"PANCAKE MIXES & SYRUP"]
[null,null,null,null,"PAPER NAPKINS"]
[null,null,null,null,"PAPER TOWELS"]
[null,null,null,null,"PASSOVER"]
[null,null,null,null,"PASTA - DRY"]
[null,null,null,null,"PASTA - SPECIALITY"]
[null,null,null,null,"PASTA SAUCE"]
[null,null,null,null,"PEANUT BUTTER, JELLY, JAMS"]
[null,null,null,null,"PEPPERIDGE FARMS"]
[null,null,null,null,"PERSONAL CLEANSING"]
[null,null,null,null,"PERUVIAN"]
[null,null,null,null,"PET GMD - ACCESSORIES"]
[null,null,null,null,"PET GMD - BEDS & PUPPY PADS"]
[null,null,null,null,"PET GMD - RAWHIDE"]
[null,null,null,null,"PET GMD - TOYS"]
[null,null,null,null,"PICKLES & OLIVES"]
[null,null,null,null,"PLASTIC DINNERWARE"]
[null,null,null,null,"POOL CHEMICALS"]
[null,null,null,null,"POWDERED SOFT DRINK"]
[null,null,null,null,"PRODUCE - BAGGED SALAD"]
[null,null,null,null,"PRODUCE - JUICE"]
[null,null,null,null,"PRODUCE - SALAD DRESSING"]
[null,null,null,null,"PUDDING"]
[null,null,null,null,"REFRIGERATED DOUGH"]
[null,null,null,null,"REFRIGERATED JUICE"]
[null,null,null,null,"REGIONAL & LOCAL"]
[null,null,null,null,"RESPIRATORY"]
[null,null,null,null,"RESTRICTED DIET & GLUTEN FREE"]
[null,null,null,null,"RICE"]
[null,null,null,null,"RICE - BOXED"]
[null,null,null,null,"RICE CAKES"]
[null,null,null,null,"RTD COFFEE"]
[null,null,null,null,"RTD TEA"]
[null,null,null,null,"RTE POPCORN"]
[null,null,null,null,"RUG DOCTOR"]
[null,null,null,null,"SAZON"]
[null,null,null,null,"SEAFOOD SEASONING"]
[null,null,null,null,"SEWING & DYES"]
[null,null,null,null,"SHAMPOO & FIXATIVE"]
[null,null,null,null,"SHOE CARE"]
[null,null,null,null,"SKIN CARE"]
[null,null,null,null,"SMALL ANIMAL & AQUATIC"]
[null,null,null,null,"SMOKING CESSATION"]
[null,null,null,null,"SNACKS NUTS"]
[null,null,null,null,"SOAP PADS"]
[null,null,null,null,"SOUP - BROTH"]
[null,null,null,null,"SOUP - CONDENSED"]
[null,null,null,null,"SOUP - DRY"]
[null,null,null,null,"SOUP - RTS"]
[null,null,null,null,"SOUTH AMERICAN"]
[null,null,null,null,"SPECIALITY - COOKIES & CRACKERS"]
[null,null,null,null,"SPECIALTY POPCORN"]
[null,null,null,null,"SPICES"]
[null,null,null,null,"SPORTS MEDICINE"]
[null,null,null,null,"SS RTE ENTRÉE"]
[null,null,null,null,"STATIONARY"]
[null,null,null,null,"STRENGTH & ENERGY"]
[null,null,null,null,"STUFFING"]
[null,null,null,null,"SUGAR"]
[null,null,null,null,"SUN CARE"]
[null,null,null,null,"SUPERBRAND DRINKS"]
[null,null,null,null,"SWEET GOODS"]
[null,null,null,null,"TEA"]
[null,null,null,null,"TOASTER PASTRIES"]
[null,null,null,null,"TOBACCO - CIGARETTES"]
[null,null,null,null,"TOBACCO - OTHER TOBACCO PRODUCT"]
[null,null,null,null,"TOYS"]
[null,null,null,null,"TRASH BAGS"]
[null,null,null,null,"TRAVEL SIZE"]
[null,null,null,null,"VAPORIZER & HUMIDIFIER"]
[null,null,null,null,"VENEZUELAN"]
[null,null,null,null,"VINEGAR"]
[null,null,null,null,"VITAMINS"]
[null,null,null,null,"WAREHOUSE CHIPS"]
[null,null,null,null,"WAREHOUSE SNACKS"]
[null,null,null,null,"WATER - ENHANCED"]
[null,null,null,null,"WATER - GALLON"]
[null,null,null,null,"WATER - PET"]
[null,null,null,null,"WATER - SPARKLING"]
[null,null,null,null,"WATER SOFTNER"]
[null,null,null,null,"WEIGHT MANAGEMENT"]
[null,null,null,null,"WILD BIRD"]
[null,null,null,null,"WINE"]
[null,null,null,null,"YOGURT"]
[null,null,null,null,"YOGURT - SPECIALTY"]

{"sheet":"Shipper Component form","index":4,"n_rows":26,"n_cols":10,"rows_kept":26,"cut":false,"hidden":false,"merged":[[6,9,7,9],[0,0,0,6],[6,0,7,0],[6,1,7,1],[6,2,7,2],[6,3,7,3],[6,4,7,4],[6,5,7,5],[6,6,7,6]]}
["SHIPPER COMPONENT WORKSHEET"]
[null,"Display/Shpr","Display/Shpr",null,null,"Qty per","Display",null,null,"Display"]
[null," CODE","UPC","DISPLAY / PREPACK  DESCRIPTION",null,"Shipper","Cost",null,null,"Retail"]
[null,null,null,null,null,{"$f":"SUM(E9:E24)","v":0},{"$f":"SUM(G9:G24)","v":0},null,null,{"$f":"SUM(J9:J24)","v":0}]
[]
["DISPLAY CONTENTS"]
["Item Bar Code Image","SEG Code #","UPC "," Description","Qty per Display","Item Net  UnitCost","Display Cost",null,"Item","Display Retail"]
[null,null,null,null,null,null,null,null,"Retail"]
[null,null,null,null,null,null,{"$f":"E9*F9","v":0},null,null,{"$f":"I9*E9","v":0}]
[null,null,null,null,null,null,{"$f":"E10*F10","v":0},null,null,0]
[null,null,null,null,null,null,0,null,null,0]
[null,null,null,null,null,null,0,null,null,0]
[null,null,null,null,null,null,0,null,null,0]
[null,null,null,null,null,null,0,null,null,0]
[null,null,null,null,null,null,0,null,null,0]
[null,null,null,null,null,null,0,null,null,0]
[null,null,null,null,null,null,0,null,null,0]
[null,null,null,null,null,null,0,null,null,0]
[null,null,null,null,null,null,0,null,null,0]
[null,null,null,null,null,null,0,null,null,0]
[null,null,null,null,null,null,0,null,null,0]
[null,null,null,null,null,null,0,null,null,0]
[null,null,null,null,null,null,0,null,null,0]
[null,null,null,null,null,null,0,null,null,0]
[null,null,null,null,null,null,{"$f":"IF(E25>0,E25*F25,\" \")","v":" "}]
[null,null,null,null,null,null," "]